{"text_format":"1","workbook":"xlsx","n_sheets":5,"sheets":["Ficha Técnica","Preguntas Orientadoras Análisis","Matriz","Listas","DptosMpios"],"not_rendered":{"charts":0,"images":3,"macros":1,"external_links":0,"defined_names":34,"comments":1,"pivot_tables":0},"unopened":[],"bounds":{"document_bytes":16777216,"sheet_cells":100000,"rows_first":2000,"rows_last":500,"rows_between":2000,"halvings":0,"cell_chars":16384,"cell_head_chars":4096},"cells_cut":0,"cells_raw":0,"read":"whole","date_system":"1900"}

{"sheet":"Ficha Técnica","index":0,"n_rows":66,"n_cols":7,"rows_kept":66,"cut":false,"hidden":false,"merged":[]}
["Eje Temático","Indicador","Definición","Observación","Tipo de indicador","Disposición","Ficha del Indicador"]
["1. Demograficos y poblacionales","Número de personas afiliadas a la EAPB en el territorio","Corresponde al número total de personas afiliadas a la EAPB en el territorio",null,"Estructura","Cubo Estadísticas Afiliados a Salud","Ficha en Catálogo Indicadores DED"]
["1. Demograficos y poblacionales","Porcentaje de la población del departamento afiliada por EAPB","Cociente entre el número de personas afiliadas en el departamento por EAPB y la población total del departamento",null,"Estructura","Cubo Indicadores Caracterización","Ficha en Catálogo Indicadores DED"]
["1. Demograficos y poblacionales","Porcentaje de la población del municipio afiliada por EAPB","Cociente entre el número de personas afiliadas en el municipio y la población total del municipio",null,"Estructura","Cubo Indicadores Caracterización","Ficha en Catálogo Indicadores DED"]
["1. Demograficos y poblacionales","Grupo de Curso de vida con mayor proporción de afiliados en el territorio","Cociente entre el número de personas afiliadas en el territorio por momentos del curso de vida y el número total de personas afiliadas a la EAPB en el territorio","Agrupación por momentos de curso de vida - Identificar el grupo que tiene mayor proporción de personas afiliadas en el territorio","Estructura","Fuente Propia EAPB - Cubo Estadísticas Afiliados a Salud por Grupos Edad","Definida por la EAPB"]
["1. Demograficos y poblacionales","Proporción de personas afiliadas a la EAPB en la ruralidad en el territorio","Expresa la proporción de personas afiliadas a la EAPB según zona de residencia rural y rural disperso","Puede adaptar ficha a la EAPB, según fuente propia","Estructura","Fuente Propia EAPB - Cubo Estadísticas Afiliados a Salud por Grupos Edad","Ficha en Catálogo Indicadores DED"]
["1. Demograficos y poblacionales","Número de personas afiliadas a la EAPB por pertenencia étnica (pueblos étnicos en el territorio). ","Es el número de personas afiliadas según su pertenencia étnica. Describa los pueblos étnicos a los cuales pertenece la población (Indigena, NARP, ROM)","Reporte progresivo (Dato inicial que tiene la EAPB, mientras cuenta con fuente de información con calidad). Puede adaptar ficha a la EAPB, según fuente propia","Estructura","Fuente Propia EAPB - Cubo Estadísticas Afiliados a Salud por Grupos Edad","Ficha en Catálogo Indicadores DED"]
["1. Demograficos y poblacionales","Número de personas afiliadas a la EAPB en condición de discapacidad en el territorio","Expresa el número de personas afiliadas en condición de discapacidad","Puede adaptar ficha a la EAPB, según fuente propia","Estructura","Fuente Propia EAPB","Ficha en Catálogo Indicadores DED"]
["1. Demograficos y poblacionales","Número de personas afiliadas a la EAPB víctimas del conflicto armado interno","Expresa el número de personas afiliadas víctimas del conflicto armado interno","Reporte progresivo (Dato inicial que tiene la EAPB, mientras cuenta con fuente de información con calidad)","Estructura","Fuente Propia EAPB","Definida por la EAPB"]
["1. Demograficos y poblacionales","Número de personas afiliadas a la EAPB migrantes venezolanos","Expresa el número de personas afiliadas que son migrantes Venezolanos",null,"Estructura","Fuente Propia EAPB","Definida por la EAPB"]
["2. Salud mental y emocional\n","Proporción de personas afiliadas a la EAPB en programas de prevención del uso y consumo de sustancias psicoactivas legales e ilegales","Personas afiliadas a la EAPB en programas de prevención del uso y consumo de sustancias psicoactivas legales e ilegales en el territorio/Total personas afiliadas en el territorio","Reporte progresivo (Dato inicial que tiene la EAPB, mientras cuenta con fuente de información con calidad)","Gestión del riesgo -prevención","Fuente Propia EAPB","Definida por la EAPB"]
["2. Salud mental y emocional\n","Tasa de intento de suicidio ","Es el número de intentos de suicidio que no se consuman en mortalidad por 100.000 personas en un periodo y área geográfica determinada",null,"Gestión del riesgo - diagnóstico o tratamiento","SIVIGILA","Ficha en Catálogo Indicadores DED"]
["2. Salud mental y emocional\n","Tasa de mortalidad por lesiones autoinfligidas intencionalmente (suicidios)-EAPB","Expresa el número total de defunciones por lesiones autoinfligidas intencionalmente (suicidios), en un periodo y área geográfica determinada",null,"Resultado -mortalidad","Cubo Indicadores Caracterización","Ficha en Catálogo Indicadores DED"]
["3. Salud sexual y reproductiva en mujeres\n","Porcentaje de casos de violencia contra la mujer","Es la proporción de casos de violencia contra la mujer","Puede adaptar ficha a la EAPB","Gestión del riesgo - diagnóstico o tratamiento","SIVIGILA","Ficha en Catálogo Indicadores DED"]
["3. Salud sexual y reproductiva en mujeres\n","Proporción del uso actual de métodos anticonceptivos de larga duración reversibles en mujeres de 13 a 49 años","Número de mujeres de 13 a 49 años atendidas en los servicios de salud por procedimientos en salud (suministro de metodos de larga duracion) en el territorio / numero de mujeres de 13 a 49 años afiliadas en el territorio*100","CUPS : 697100 - inserción de dispositivo intrauterino anticonceptivo (diu) sod +, 697101 - inserción de dispositivo intrauterino anticonceptivo [diu], 861801 - inserción de anticonceptivos subdermicos","Gestión del riesgo -prevención","Cubo RIPS - Cubo Estadísticas Afiliados a Salud por Grupos Edad","Ficha metas resultado PDSP"]
["3. Salud sexual y reproductiva en mujeres\n","Porcentaje de partos institucionales - EAPB","Se define como el porcentaje de partos (con resultado nacido vivo) que son atendidos en una institución de salud habilitada",null,"Estructura","Cubo Indicadores Caracterización","Ficha en Catálogo Indicadores DED"]
["3. Salud sexual y reproductiva en mujeres\n","Porcentaje de partos por cesárea","Número de nacidos vivos por cesárea en afiliadas a la EAPB en el territorio  / Numero de Partos institucionales en afiliadas a la EAPB en el territorio ",null,"Estructura","Fuente Propia EAPB","Definida por la EAPB"]
["3. Salud sexual y reproductiva en mujeres\n","Número de mujeres con acceso seguro a interrupción voluntaria del embarazo","Número de mujeres que tuvieron acceso seguro a interrupción voluntaria de su embarazo","Reporte progresivo (Dato inicial que tiene la EAPB, mientras cuenta con fuente de información con calidad)","Gestión del riesgo - diagnóstico o tratamiento","Fuente Propia EAPB","Definida por la EAPB"]
["3. Salud sexual y reproductiva en mujeres\n","Proporción de gestantes que cuentan con serología trimestral","Expresa la proporción de gestantes a las que se les realizaron las tres tomas de serología durante el embarazo en un periodo determinado.","Puede adaptar ficha a la EAPB","Estructura","Fuente Propia EAPB","Ficha en Catálogo Indicadores DED"]
["3. Salud sexual y reproductiva en mujeres\n","Tasa General de Fecundidad  - EAPB","Es el número de nacidos vivos por cada 1 mujeres en edad reproductiva (15 a 49 años). Esta medida no se encuentra influenciada por la estructura ni la composición por sexo de la población objeto de estudio.",null,"Estructura","Cubo Indicadores Caracterización","Ficha en Catálogo Indicadores DED"]
["3. Salud sexual y reproductiva en mujeres\n","Tasa de fecundidad en mujeres de 10 a 14 años - EAPB","Es el número de nacidos vivos de madres de 10 a 14 años de edad durante un período dado por cada 1.000 mujeres de 10 a 14 años de edad",null,"Impacto - brechas","Cubo Indicadores Caracterización","Ficha en Catálogo Indicadores DED"]
["3. Salud sexual y reproductiva en mujeres\n","Tasa de fecundidad en mujeres de 15 a 19 años - EAPB","Es el número de nacidos vivos de madres de 15 a 19 años de edad durante un período dado por cada 1.000 mujeres de 15 a 19 años de edad",null,"Resultado -mortalidad","Cubo Indicadores Caracterización","Ficha en Catálogo Indicadores DED"]
["3. Salud sexual y reproductiva en mujeres\n","Razón de morbilidad materna extrema","Es el número de mujeres con una complicación durante el embarazo, el parto o dentro de los 42 días siguientes a la terminación del embarazo, que pone en riesgo su vida, pero sobrevive, por cada mil nacidos vivos","Puede adaptar ficha a la EAPB","Resultado -mortalidad","SIVIGILA - Cubo EEVV","Ficha en Catálogo Indicadores DED"]
["3. Salud sexual y reproductiva en mujeres\n","Razón de Mortalidad Materna a 42 días","Es el número de mujeres que mueren durante el embarazo o en los 42 días siguientes a su terminación y debido a cualquier causa relacionada con o agravada por el embarazo mismo o su atención, ocurridas en un periodo sobre el total de nacidos vivos en un periodo",null,"Resultado -mortalidad","Cubo Indicadores Caracterización","Ficha en Catálogo Indicadores DED"]
["3. Salud sexual y reproductiva en mujeres\n","Razón de Mortalidad Materna en mujeres indigenas afiliadas EAPB","Es el número de mujeres indígenas que mueren durante el embarazo o en los 42 días siguientes a su terminación y debido a cualquier causa relacionada con o agravada por el embarazo mismo o su atención, ocurridas en un periodo sobre el total de nacidos vivos en un periodo","Puede adaptar ficha a la EAPB (Razón Razón de mortalidad materna)","Impacto - brechas","Fuente Propia EAPB","Ficha en Catálogo Indicadores DED"]
["3. Salud sexual y reproductiva en mujeres\n","Razón de Mortalidad Materna en mujeres extranjeras -migración venezolana","Es el número de mujeres extranjeras - migrantes venezolanas que mueren durante el embarazo o en los 42 días siguientes a su terminación y debido a cualquier causa relacionada con o agravada por el embarazo mismo o su atención, ocurridas en un periodo sobre el total de nacidos vivos en un periodo","Puede adaptar ficha a la EAPB (Razón Razón de mortalidad materna)","Impacto - brechas","Fuente Propia EAPB","Ficha en Catálogo Indicadores DED"]
["3. Salud sexual y reproductiva en mujeres\n","Porcentaje de nacidos vivos con bajo peso al nacer - EAPB","Expresa el número de nacidos vivos con peso inferior a 2.500 gramos medido al momento del nacimiento o dentro de las primeras horas de vida por 100 nacidos vivos, en un determinado país, territorio o área geográfica",null,"Impacto - brechas","Cubo Indicadores Caracterización","Ficha en Catálogo Indicadores DED"]
["3. Salud sexual y reproductiva en mujeres\n","Tasa de incidencia de tumor maligno invasivo de cérvix","Es el número de casos nuevos de tumor maligno invasivo de cérvix por cada 100.000 mujeres","Cociente entre el número de casos nuevos del tumor maligno de cérvix en estadio invasivo y el número total de mujeres afiliadas que se mantuvieron afiliadas a la EAPB al menos 3 meses durante el periodo de reporte","Gestión del riesgo -prevención","Fuente Propia EAPB","Ficha en Catálogo Indicadores DED"]
["3. Salud sexual y reproductiva en mujeres\n","Oportunidad de tratamiento en días, tiempo entre el diagnostico hasta el primer tratamiento por tumor maligno de cuello uterino","Tiempo de espera para el inicio del tratamiento de cáncer de cuello uterino",null,"Resultado -mortalidad","Indicadores CAC","Ficha Indicadores CAC Cancer"]
["3. Salud sexual y reproductiva en mujeres\n","Oportunidad de tratamiento en días, tiempo entre el diagnostico hasta el primer tratamiento por tumor maligno de cuello uterino en la ruralidad","Tiempo de espera para el inicio del tratamiento de cáncer de cuello uterino - Rural-","Reporte progresivo (Dato inicial que tiene la EAPB, mientras cuenta con fuente de información con calidad). Puede adaptar ficha a la EAPB, según fuente propia","Impacto - brechas","Fuente Propia EAPB","Definida por la EAPB"]
["3. Salud sexual y reproductiva en particular para la mujer\n","Oportunidad de tratamiento en días, tiempo entre el diagnostico hasta el primer tratamiento por tumor maligno de mama","Tiempo de espera para el inicio del tratamiento por tumor maligno de mama",null,"Gestión del riesgo -prevención","Indicadores CAC","Ficha Indicadores CAC Cancer"]
["4. Salud de niños, niñas y adolescentes","Proporción de niños y niñas de cinco años que cuentan con esquema completo de vacunación","Cociente del número de niños y niñas afiliado(a)s de cinco años que cuentan con esquema completo de vacunación y la población total de niños y niñas afiliado(a)s de 5 años","Reporte progresivo (Dato inicial que tiene la EAPB, mientras cuenta con fuente de información con calidad)","Gestión del riesgo -prevención","Fuente Propia EAPB","Definida por la EAPB"]
["4. Salud de niños, niñas y adolescentes","Porcentaje de transmisión materno infantil del VIH en menores de 2 años","Es la proporción de niños y niñas menores de dos años que adquirieron el VIH por vía materna con respecto al total de niños expuestos (hijos de mujeres con diagnóstico de VIH durante la gestación) en un periodo determinado.","Estrategia de Eliminación de la transmisión Materno Infantil del VIH","Gestión del riesgo -prevención","Anexos EAPB - TMI Estrategia de Eliminación de la transmisión Materno Infantil del VIH","Ficha en Catálogo Indicadores DED"]
["4. Salud de niños, niñas y adolescentes","Proporción de menores de 18 años que cumplen el estándar de 5 días para el inicio de tratamiento de Leucemia Aguda Pediátrica - LAP","Proporción de menores de 18 años que cumplen el estándar de 5 días para el inicio de tratamiento de Leucemia Aguda Pediátrica - LAP",null,"Gestión del riesgo - diagnóstico o tratamiento","Indicadores CAC","Ficha Indicadores CAC Cancer"]
["4. Salud de niños, niñas y adolescentes","Proporción de niños con diagnóstico de hipotiroidismo congénito que reciben tratamiento","Cociente entre el número de casos de hipotiroidismo congénito que reciben tratamiento y el número de casos de hipotiroidismo congénito ","Reporte progresivo (Dato inicial que tiene la EAPB, mientras cuenta con fuente de información con calidad)","Gestión del riesgo - diagnóstico o tratamiento","Fuente Propia EAPB","Definida por la EAPB"]
["4. Salud de niños, niñas y adolescentes","Tasa de mortalidad infantil - EAPB","Es el número de defunciones de niños menores de 1 año por cada 1.000 nacidos vivos, en un periodo y área geográfica determinada",null,"Resultado -mortalidad","Cubo Indicadores Caracterización","Ficha en Catálogo Indicadores DED"]
["4. Salud de niños, niñas y adolescentes","Tasa de mortalidad por EDA en menores de 5 años - EAPB","Expresa el número total de defunciones por EDA en menores de 5 años, en un periodo y área geográfica determinada",null,"Resultado -mortalidad","Cubo Indicadores Caracterización","Ficha en Catálogo Indicadores DED"]
["4. Salud de niños, niñas y adolescentes","Tasa de mortalidad por IRA en menores de 5 años - EAPB","Expresa el número total de defunciones por IRA en menores de 5 años, en un periodo y área geográfica determinada",null,"Resultado -mortalidad","Cubo Indicadores Caracterización","Ficha en Catálogo Indicadores DED"]
["4. Salud de niños, niñas y adolescentes","Tasa de mortalidad por desnutrición en menores de 5 años","Es el numero de muertes de menores de 5 años por deficiencias nutricionales y anemias nutricionales por cada 100.000 menores de 5 años","Puede adaptar ficha a la EAPB","Resultado -mortalidad","Cubo EEVV - Cubo Estadísticas Afiliados a Salud por Grupos Edad","Ficha en Catálogo Indicadores DED"]
["5. Enfermedades crónicas no transmisibles\n","Tasa de mortalidad prematura por enfermedades cronicas no transmisibles (Cancer, enfermedades del sistema circulatorio,Diabetes, Enfermedades del sistema respiratorio) ","Expresa el número de defunciones en personas de 30 a 70 años  por enfermedades cronicas no transmisibles (Cancer, enfermedades del sistema circulatorio,Diabetes, Enfermedades del sistema respiratorio) ",null,"Resultado -mortalidad","Cubo Indicadores Caracterización","Ficha en Catálogo Indicadores DED"]
["5. Enfermedades crónicas no transmisibles\n","Proporción de población afiliada del territorio identificada por la EAPB con factores de riesgo como tabaquismo, sedentarismo o consumo de alcohol","Cociente entre el número de población afiliada del territorio identificada por la EAPB con factores de riesgo como tabaquismo, sedentarismo o consumo de alcohol y el número total de personas afiliadas en el territorio","Reporte progresivo (Dato inicial que tiene la EAPB, mientras cuenta con fuente de información con calidad)","Gestión del riesgo -prevención","Fuente Propia EAPB","Definida por la EAPB"]
["5. Enfermedades crónicas no transmisibles\n","Captación de hipertensión arterial de personas de 18 a 69 años","Cociente entre el Número de personas vivas y activas con hipertensión arterial entre los 18 y 69 años y los Casos de HTA esperados para cada una de las entidades respecto de su población afiliada a la fecha de corte",null,"Gestión del riesgo -prevención","Indicadores CAC","Ficha Indicadores CAC ERC"]
["5. Enfermedades crónicas no transmisibles\n","Captación de diabetes mellitus de personas de 18 a 69 años","Cociente entre el Número de personas vivas y activas con diabetes mellitus entre los 18 y 69 años y los Casos de DM esperados para cada una de las entidades respecto de su población afiliada a la fecha de corte",null,"Gestión del riesgo -prevención","Indicadores CAC","Ficha Indicadores CAC ERC"]
["5. Enfermedades crónicas no transmisibles\n","Proporción de pacientes hipertensos controlados","Expresa la proporción de paciente con diagnóstico de hipertensión arterial quienes se encuentran con cifras tensionales por debajo de 140/90 mmHg en el último semestre.","Reporte EAPB a CAC","Gestión del riesgo -prevención","Fuente Propia EAPB","Definida por la EAPB"]
["5. Enfermedades crónicas no transmisibles\n","Proporción de pacientes diabéticos controlados","Expresa la proporción de pacientes con diagnóstico de Diabetes Mellitus quienes se encuentran con hemoglobina glicosilada menor a 7% en los últimos seis meses.","Reporte EAPB a CAC","Gestión del riesgo -prevención","Fuente Propia EAPB","Definida por la EAPB"]
["5. Enfermedades crónicas no transmisibles\n","Oportunidad de tratamiento en días, tiempo entre el diagnostico hasta el primer tratamiento por tumor maligno de colon y recto","Tiempo de espera para el inicio del tratamiento por tumor maligno de colon y recto",null,"Gestión del riesgo -prevención","Indicadores CAC","Ficha Indicadores CAC Cancer"]
["5. Enfermedades crónicas no transmisibles\n","Porcentaje de hombres con diagnóstico de cáncer de próstata identificado en estadios tempranos","Cociente entre Número de casos nuevos de cáncer de próstata diagnosticados en estadios tempranos  (I a II) y el Total de  CNR con cáncer de próstata invasivo",null,"Gestión del riesgo - diagnóstico o tratamiento","Indicadores CAC","Ficha Indicadores CAC Cancer"]
["5. Enfermedades crónicas no transmisibles\n","Oportunidad de diagnostico en días, tiempo entre la consulta en donde se realiza remisión por sospecha clínica asociada a cáncer (tumor maligno de próstata) hasta la confirmación diagnóstica","Cociente de la Sumatoria de días transcurridos entre remisión y el diagnóstico y el Total de casos nuevos reportados (CNR) con cáncer de próstata",null,"Gestión del riesgo - diagnóstico o tratamiento","Indicadores CAC","Ficha Indicadores CAC Cancer"]
["5. Enfermedades crónicas no transmisibles\n","Tasa ajustada de mortalidad por enfermedades hipertensivas","Es el número de muertes por enfermedades hipertensivas por 100.000 personas que ocurrirían si la población tuviera la misma estructura de edad que la población estándar.",null,"Resultado -mortalidad","Anexos EAPB - Extracción mortalidad","Ficha en Catálogo Indicadores DED"]
["5. Enfermedades crónicas no transmisibles\n","Tasa ajustada de mortalidad por enfermedades hipertensivas en mujeres","Es el número de muertes en mujeres por enfermedades hipertensivas por 100.000 personas que ocurrirían si la población tuviera la misma estructura de edad que la población estándar.",null,"Resultado -mortalidad","Anexos EAPB - Extracción mortalidad","Ficha en Catálogo Indicadores DED"]
["5. Enfermedades crónicas no transmisibles\n","Tasa ajustada de mortalidad por enfermedades hipertensivas en hombres","Es el número de muertes en hombres por enfermedades hipertensivas por 100.000 personas que ocurrirían si la población tuviera la misma estructura de edad que la población estándar.",null,"Resultado -mortalidad","Anexos EAPB - Extracción mortalidad","Ficha en Catálogo Indicadores DED"]
["5. Enfermedades crónicas no transmisibles\n","Tasa de mortalidad prematura por enfermedades del sistema circulatorio","Expresa el número de muertes en personas entre 30 a 70 años por enfermedades del sistema circulatorio",null,"Resultado -mortalidad","Cubo Indicadores Caracterización","Ficha en Catálogo Indicadores DED"]
["5. Enfermedades crónicas no transmisibles\n","Tasa ajustada de mortalidad por diabetes mellitus","Es el número de muertes por diabetes mellitus por 100.000 personas que ocurrirían si la población tuviera la misma estructura de edad que la población estándar.",null,"Resultado -mortalidad","Anexos EAPB - Extracción mortalidad","Ficha en Catálogo Indicadores DED"]
["5. Enfermedades crónicas no transmisibles\n","Tasa de mortalidad prematura por diabetes mellitus","Expresa el número de muertes en personas entre 30 a 70 años por diabetes",null,"Resultado -mortalidad","Cubo Indicadores Caracterización","Ficha en Catálogo Indicadores DED"]
["5. Enfermedades crónicas no transmisibles\n","Tasa ajustada de mortalidad por enfermedades crónicas de las vías respiratorias inferiores","Es el número de muertes por enfermedades crónicas de las vías respiratorias inferiores por 100.000 personas que ocurrirían si la población tuviera la misma estructura de edad que la población estándar.",null,"Resultado -mortalidad","Anexos EAPB - Extracción mortalidad","Ficha en Catálogo Indicadores DED"]
["5. Enfermedades crónicas no transmisibles\n","Tasa ajustada de mortalidad por neoplasias","Es el número de muertes por neoplasias por 100.000 personas que ocurrirían si la población tuviera la misma estructura de edad que la población estándar.",null,"Resultado -mortalidad","Anexos EAPB - Extracción mortalidad","Ficha en Catálogo Indicadores DED"]
["5. Enfermedades crónicas no transmisibles\n","Tasa de mortalidad por neoplasias (tumores) en personas de 30 a 70 años-EAPB","Expresa el número de muertes en personas entre 30 a 70 años por neoplasias",null,"Resultado -mortalidad","Cubo Indicadores Caracterización","Ficha en Catálogo Indicadores DED"]
["5. Enfermedades crónicas no transmisibles\n","Tasa de mortalidad por enfermedades cronicas no transmisibles en afiliados - urbano","Cociente entre el número de muertes en personas afiliadas a nivel urbano por enfermedades no transmisibles (Cancer, enfermedades del sistema circulatorio,Diabetes, Enfermedades del sistema respiratorio) y la población total de afiliados","CIE 10:C00-D48, I00-I99,J40-J47,E10-E14, (Cancer, enfermedades del sistema circulatorio,Diabetes, Enfermedades del sistema respiratorio) ","Impacto - brechas","Fuente Propia EAPB","Definida por la EAPB"]
["5. Enfermedades crónicas no transmisibles\n","Tasa de mortalidad por enfermedades cronicas no transmisibles en afiliados - rural","Cociente entre el número de muertes en personas afiliadas a nivel rural por enfermedades no transmisibles (Cancer, enfermedades del sistema circulatorio,Diabetes, Enfermedades del sistema respiratorio) y la población total de afiliados","CIE 10:C00-D48, I00-I99,J40-J47,E10-E14, (Cancer, enfermedades del sistema circulatorio,Diabetes, Enfermedades del sistema respiratorio) ","Impacto - brechas","Fuente Propia EAPB","Definida por la EAPB"]
["6. Enfermedades infecciosas y transmisibles","Tasa de incidencia de VIH","Cociente entre los Casos nuevos con diagnóstico confirmado de VIH registrados en el periodo y la población afiliada",null,"Gestión del riesgo - diagnóstico o tratamiento","Indicadores CAC","Ficha Indicadores CAC VIH"]
["6. Enfermedades infecciosas y transmisibles","Tasa ajustada de mortalidad por tuberculosis","Es el número de muertes por tuberculosis por 100.000 personas que ocurrirían si la población tuviera la misma estructura de edad que la población estándar.",null,"Resultado -mortalidad","Anexos EAPB - Extracción mortalidad","Ficha en Catálogo Indicadores DED"]
["6. Enfermedades infecciosas y transmisibles","Tasa ajustada de mortalidad por enfermedades transmisibles","Es el número de muertes por enfermedades transmisibles por 100.000 personas que ocurrirían si la población tuviera la misma estructura de edad que la población estándar.",null,"Resultado -mortalidad","Anexos EAPB - Extracción mortalidad","Ficha en Catálogo Indicadores DED"]
["6. Enfermedades infecciosas y transmisibles","Letalidad de malaria-EAPB","Porcentaje de personas que mueren por malaria entre las personas con diagnóstico de malaria",null,"Resultado -mortalidad","Cubo Indicadores Caracterización","Ficha en Catálogo Indicadores DED"]
["6. Enfermedades infecciosas y transmisibles","Letalidad de Dengue grave-EAPB","Porcentaje de personas que mueren por dengue grave entre las personas con diagnóstico de Dengue grave",null,"Resultado -mortalidad","Cubo Indicadores Caracterización","Ficha en Catálogo Indicadores DED"]
["6. Enfermedades infecciosas y transmisibles","Letalidad de Infección Respiratoria Aguda Grave (IRAG)","Porcentaje de  en menores de  5 años que mueren por infección respiratoria aguda entre los menores de  5 añoscon diagnóstico de infección respiratoria aguda",null,"Resultado -mortalidad","Cubo Indicadores Caracterización","Ficha en Catálogo Indicadores DED"]
["6. Enfermedades infecciosas y transmisibles","Número de personas atendidas por fiebre amarilla","Conteo del número de casos de personas con Fiebre Amarilla","Puede adaptar ficha a la EAPB","Gestión del riesgo -prevención","SIVIGILA","Ficha en Catálogo Indicadores DED"]

{"sheet":"Preguntas Orientadoras Análisis","index":1,"n_rows":34,"n_cols":4,"rows_kept":34,"cut":false,"hidden":false,"merged":[[0,2,0,3]]}
["DEMOGRÁFICOS Y POBLACIONALES",null,"GENERAL"]
["De acuerdo con los grupos etarios predominantes, describa los programas de atención diferencial por curso de vida que la EAPB tiene en el territorio.",null,"EAPB INDIGENAS","Cómo valora el comportamiento conjunto de los indicadores de la población afiliada en el territorio (pueblos y comunidades). Por favor no describa lo mismo, que ya fue presentado de manera numerica"]
["De acuerdo con la estructura poblacional de la EAPB y su distribución en el territorio, describa los programas o acciones que la entidad adelanta en el territorio para garantizar el goce efectivo del derecho a la salud de la población que habita la ruralidad.",null,"EAPB INDIGENAS","La EAPB ha incorporado saberes propios para el abordaje de la situación en salud de los miembros y pueblos y comunidades del territorio."]
["De acuerdo con la estructura poblacional de la EAPB, señale las acciones en cuidado intercultural que la EAPB adelanta en el territorio  para el abordaje de pueblos y comundades étnicas, y otras poblaciones que por creencias o cosmovisiones específicas requieren enfoque particulares. \n\nAdemás, en el caso de las EAPB Indigenas describa si se han incoporado saberes propios para el abordaje de las condiciones de salud de los miembros de pueblos y comunidades indigenas.",null,"DEMAS EAPB","Han desarrollado acciones de interculturalidad en salud para el abordaje de los miembros de pueblos y comunidades étnicas afiliados."]
["De acuerdo con la estructura poblacional de la EAPB,  indique los programas o acciones que la EAPB adelanta en el territorio para garantizar el goce efectivo del derecho a la salud de la población con discapacidad?"]
["De acuerdo con la estructura poblacional de la EAPB, desciba los programas o acciones diferenciales que la EAPB adelanta en el territorio, para el abordaje de poblaciones de especial protección constitucional."]
[]
["SALUD MENTAL Y EMOCIONAL"]
["Emita un juicio de valor respecto del comportamientode los indicadores de salud mental y emocional (gestión del riesgo y resultados) de la población afiliada en el territorio. (Por favor no describa lo mismo que ya fue presentado de manera númerica)\n\n\nAdemás, para el caso de de EABP indigenas indique si la EAPB realiza acciones de comprensión  psico-espiritual para la comprensión de la salud mental y emocional de la población de pueblos y comunidades étnicas."]
[]
["SALUD SEXUAL Y REPRODUCTIVA EN MUJERES"]
["Emita un juicio de valor respecto del comportamientode los indicadores de salud sexual y reproductiva (estructura, gestión del riesgo , resultados e impacto-brechas)de la población afiliada en el territorio. (Por favor no describa lo mismo que ya fue presentado de manera númerica)"]
["Para la EAPB, ¿El comportamiento de los indicadores de proceso y resultado son cohorentes con los indicadores de impacto?"]
["Respecto del comportamiento diferencial de los indicadores señale ¿cómo varían los resultados de los indicadores de mortalidad materna y salud sexual y reproductiva según si la mujer vive en un área rural dispersa, rural o urbana, o petene a un pueblo o comunidad étnica?"]
["Si, la EAPB indaga la experiencia de las mujeres afiliadas respecto de la atención en servicios de salud para la salud sexual y reproductiva indique: cómo es la precepción respecto de estos servicios y qué acciones implementa para favorecer una atención que garantice una atención digna de las mujeres."]
[]
["SALUD DE NIÑOS, NIÑAS Y ADOLESCENTES"]
["Emita un juicio de valor respecto del comportamientode los indicadores para valorar la salud de niños, niñas y adolescentes ( gestión del riesgo y resultados )de la población afiliada en el territorio. (Por favor no describa lo mismo que ya fue presentado de manera númerica).\n\nAdemás, para las EAPB Indigenas indique si ha incoporado acciones e saberes propios para el abordaje de niños, niñas y adolescentes miembros de comunidades de pueblso y comunidades étnicas."]
["Emita un juicio de valor respecto de la tendencia de los indicadores (estructura, gestión del riesgo yresultados e impacto-brechas) que valoran el comportamiento de la salud de niños, niñas y adolescentes para la población afilidada de la EAPB en el territorio ¿ de mantenerse el comportamiento actual se lograría una transformación en el indicador de resultado?"]
["¿La EAPB estima  indicadores  para comprender el comportamiento de los indicadores paravalorar la salud de niños, niñas y adolescentes de manera diferencial para la población de protección constitucional específica u otro criterio? Describa cómo lo hace."]
[]
["ENFERMEDADES CRÓNICAS NO TRANSMISIBLES"]
["Emita un juicio de valor respecto del comportamientode los indicadores (estructura, gestión del riesgo, resultados e impacto-brechas) relacionados con las Enfermeddaes crónicas no transmisibles de la población afiliada en el territorio. (Por favor no describa lo mismo que ya fue presentado de manera númerica)\n\n\nAdemás, para el caso de de EABP indigenas indique si la EAPB realiza acciones específicas relacionadas con saberes propios para la comprensión y abordaje de la ENT en la población de pueblos y comunidades étnicas."]
["Emita un juicio de valor respecto de la tendencia de los indicadores (estructura, gestión del riesgo, resultados e impacto-brechas) que valoran el comportamiento de las ENT para la población afilidada de la EAPB en el territorio ¿ de mantenerse el comportamiento actual se lograría una transformación en el indicador de resultado?"]
["Desde su comprensión del territorio ¿ qué aspectos del orden territorial y de las condiciones de vida en el territorio estan impactando de manera negativa el indicador de resultado? ¿Por qué?"]
["¿ A nivel municipal la EAPB cuenta con red de prestadores para el aboraje de acciones de prevención primaria, secundaria y terciaria de las ENT?"]
["¿La EAPB estima  indicadores  para comprender el comportamiento de las ENT de manera diferencial para la población de protección constitucional específica u otro criterio? Describa cómo lo hace."]
[]
["ENFERMEDADES INFECCIOSAS Y TRANSMISIBLES"]
["Emita un juicio de valor respecto del comportamiento de los indicadores ( gestión del riesgo y resultados) relacionados con las Enfermedades infecciosas y transmisibles de la población afiliada en el territorio. (Por favor no describa lo mismo que ya fue presentado de manera númerica)\n\n\nAdemás, para el caso de de EABP indigenas indique si la EAPB realiza acciones específicas relacionadas con saberes propios para la comprensión y abordaje Enfermedades Infecciosas y trasmisibles en la población de pueblos y comunidades étnicas."]
["Emita un juicio de valor respecto de la tendencia de los indicadores de gestión del riesgo  que valoran el comportamiento de las Enfermedades Infecciosas y Transmisibles para la población afilidada de la EAPB en el territorio ¿ de mantenerse el comportamiento actual se lograría una transformación en el indicador de resultado?"]
["Desde su comprensión del territorio ¿ qué aspectos del orden territorial y de las condiciones de vida en el territorio estan impactando de manera negativa el indicador de resultado? ¿Por qué?"]
["¿ A nivel municipal la EAPB cuenta con red de prestadores para el aboraje de acciones de prevención primaria, secundaria y terciaria de las Enfermedades infecciosas y transmisibles?"]
["¿La EAPB estima  indicadores  para comprender el comportamiento de las enfermedades infecciosas y transmisibles de manera diferencial para la población de protección constitucional específica u otro criterio? Describa cómo lo hace."]

{"sheet":"Matriz","index":2,"n_rows":95,"n_cols":12,"rows_kept":95,"cut":false,"hidden":false,"merged":[[56,1,56,2],[52,1,52,2],[53,1,53,2],[54,1,54,2],[55,1,55,2],[28,1,28,2],[36,1,36,2],[41,1,41,2],[42,1,42,2],[40,1,40,2],[29,1,29,2],[30,1,30,2],[32,1,32,2],[33,1,33,2],[34,1,34,2],[35,1,35,2],[37,1,37,2],[38,1,38,2],[39,1,39,2],[44,1,44,2],[45,1,45,2],[46,1,46,2],[47,1,47,2],[82,1,82,2],[84,1,84,2],[85,1,85,2],[80,0,80,2],[57,1,57,2],[58,1,58,2],[60,1,60,2],[61,1,61,2],[62,1,62,2],[63,1,63,2],[0,0,0,11],[1,0,1,11],[2,0,2,11],[5,0,5,11],[4,0,4,11],[26,10,26,11],[23,5,23,9],[24,5,24,9],[25,5,25,9],[20,1,20,2],[21,1,21,2],[22,1,22,2],[24,1,24,2],[25,1,25,2],[23,1,23,2],[15,1,15,2],[15,5,15,9],[17,5,17,9],[18,5,18,9],[19,5,19,9],[16,0,16,2],[17,1,17,2],[18,1,18,2],[19,1,19,2],[93,1,93,2],[94,1,94,2],[88,0,88,2],[89,1,89,2],[90,1,90,2],[91,1,91,2],[92,1,92,2],[86,1,86,2],[31,0,31,2],[50,0,50,2],[59,0,59,2],[79,1,79,2],[77,1,77,2],[68,1,68,2],[69,1,69,2],[70,1,70,2],[71,1,71,2],[72,1,72,2],[73,1,73,2],[64,1,64,2],[65,1,65,2],[66,1,66,2],[67,1,67,2],[81,1,81,2],[20,5,20,9],[21,5,21,9],[22,5,22,9],[27,0,27,2],[87,1,87,2],[83,1,83,2],[15,10,15,11],[17,10,17,11],[18,10,18,11],[19,10,19,11],[20,10,20,11],[21,10,21,11],[22,10,22,11],[23,10,23,11],[24,10,24,11],[25,10,25,11],[49,1,49,2],[51,1,51,2],[48,1,48,2],[78,1,78,2],[76,1,76,2],[74,1,74,2],[75,1,75,2],[43,1,43,2]]}
["MINISTERIO DE SALUD Y PROTECCIÓN SOCIAL"]
["REPÚBLICA DE COLOMBIA"]
["DIRECCION DE EPIDEMIOLOGÍA Y DEMOGRAFÍA"]
[]
["PLANEACIÓN INTEGRAL PARA LA SALUD TERRITORIAL"]
["MATRIZ DE ANÁLISIS TERRITORIAL DE LAS CONDICIONES DE SALUD DE LA POBLACIÓN AFILIADA A EAPB"]
[]
[]
[null,"NOMBRE DE LA EAPB","SALUD  TOTAL  S.A.  E.P.S.",null,null,null,null,null,null,"DEPARTAMENTO "," 15 BOYACA"]
[null,"CODIGO EAPB","EPS002",null,null,null,null,null,null,"MUNICIPIO / DISTRITO","15753 - SOATA"]
[null,"REGIMEN DE AFILIACION","CONTRIBUTIVO Y SUBSIDIADO"]
[null,"EPS INDIGENA","NO"]
[null,"SANCIÓN POR LA SUPERINTENDENCIA NACIONAL DE SALUD","NO"]
[null,"OTROS PLANES DE SALUD EN EL TERRITORIO","NO"]
[]
["No.","INDICADORES",null,"Valor del Indicador","Año","Análisis cualitativo del indicador en la EAPB respecto a al comportamiento del indicador del territorio",null,null,null,null,"Análisis de la EAPB  con base en las preguntas orientadoras y otros aspectos que la EAPB considere."]
["DEMOGRÁFICOS Y POBLACIONALES"]
[1,"Número de personas afiliadas a la EAPB en el territorio",null,101,2025,"De acuerdo a las proyecciones de población DANE en el año 2025 este territorio cuenta con una población total de 9597",null,null,null,null,"La EAPB cuenta con afiliados a los dos regimenes de afiliación en este territorio, en donde el 60,40% pertenencen a regimen contributivo y el 39,60% corresponden al regimen subsidiado "]
[2,"Porcentaje de la población del departamento afiliada por EAPB",null,"2,56",2025,"NO APLICA",null,null,null,null,"NO APLICA"]
[3,"Porcentaje de la población del municipio afiliada por EAPB",null,"1,05",2025,"Del total de la población del territorio la EAPB Salud Total tiene una representación del 1,05%",null,null,null,null,"Del 100% de la población de la EAPB el  51,49% son hombres y el 48,51% son mujeres "]
[4,"Grupo de Curso de vida con mayor proporción de afiliados en el territorio",null,37.619999999999997,2025," Los cursos de vida más representativos en este territorio corresponden al grupo de la adultez, tanto para la EAPB como para la entidad territorial que esta representada en este grupo por un 36,54%",null,null,null,null,"De acuerdo con las rutas de atención establecidas y los cursos de vida, la EAPB cuenta con las siguientes atenciones diferenciadas para cada grupo:\nMaterno perinatal:\nIncluye la atención preconcepcional, prenatal, parto, puerperio, recién nacido y lactancia materna. \nPrimera infancia (0-5 años):\nSe enfoca en el desarrollo integral, valoración del estado de salud, crecimiento y habilidades físicas, cognitivas, sociales y comunicativas. \nInfancia (6-11 años):\nAtención a la salud, prevención de enfermedades, promoción de hábitos saludables. \nAdolescencia (12-18 años):\nSalud sexual y reproductiva, prevención de riesgos, salud mental, hábitos saludables. \nJuventud (19-26 años):\nSalud sexual y reproductiva, prevención de enfermedades crónicas, salud mental, proyecto de vida. \nAdultez (27-59 años):\nPrevención de enfermedades crónicas, promoción de hábitos saludables, cuidado del proyecto de vida. \nVejez (60 años y más):\nPrevención de enfermedades crónicas, promoción de la autonomía y calidad de vida, envejecimiento activo."]
[5,"Proporción de personas afiliadas a la EAPB en la ruralidad en el territorio",null,16.829999999999998,2025,"La población rural del territorio corresponde a un 26,13% y del 100% de los afiliados a Salud Total el 83,17% residen en areas urbanas",null,null,null,null,"Desde la EAPB se tiene participación en brigadas de salud y brigadas de atención a usuarios de las áreas rurales  a traves de las ips contratadas"]
[6,"Número de personas afiliadas a la EAPB por pertenencia étnica (pueblos étnicos en el territorio).",null,2,2025,"De acuerdo a las proyecciones de población DANE en el año 2025 - 20 personas del territorio se tienen identificadas con alguna pertenencia etnica, mientras que de los afiliados a salud total el 1,98% se identifican dentro de estos grupos ",null,null,null,null,"En este territorio se cuenta con población Indigena,Salud Total EPS-S cuenta actualmente con el Software de Programas Especiales, por medio del cual se realiza marcación en el sistema, base de datos que es actualizada mensualmente por medio de un proceso administrativo que extrae el dato desde nuestro Software de Historias Clínicas donde existe una pregunta obligatoria de diligenciamiento sobre la “etnia”. \n Este Software  permite registrar seguimientos administrativos, aplicar politicas de exoneración en cumplimiento del Decreto 1652 de 2022, generar alertas en los aplicativos de la EPS permitiendo que nuestros colaboradores identifiquen a las comunidades étnicas durante el proceso de atención.\n  Se estan realizando procesos que permitan mejorar el proceso de identificación de la población indígena, articulando la información que se retroalimenta desde el ADRES por BDUA en lo referente a Resolución 762 de 2023.\n\n"]
[7,"Número de personas afiliadas a la EAPB en condición de discapacidad en el territorio",null,0,2025,"Igualmente para la entidad terriorial se registran 373 personas en condición de discapacidad, mientras que para la EAPB salud total un 0% tienen registro de alguna discapacidad  ",null,null,null,null,"Salud Total EPS-S establece acciones específicas para garantizar el enfoque diferencial en la atención de la población en condición de discapacidad, entre las cuales se encuentra:\n• Proceso de identificación y caracterización de la población en condición de discapacidad.\n• Establecer rutas de direccionamiento para el reconocimiento de su condición de discapacidad.\n• Aplicación de políticas de exoneración en cumplimiento de la normatividad vigente.\n• Alertas en todos los aplicativos de Salud Total EPS-S que informan la condición de discapacidad de nuestros afiliados.\n• Ajustes en el formato de historia clínica.\n• Procesos de priorización en la atención en salud.\nDe acuerdo a la Resolución 1197 de 2024, por la que se implementa la certificación de discapacidad y el Registro de Localización y Caracterización de Personas con Discapacidad se establece no solo el proceso para la certificación de discapacidad, sino la categorización de la discapacidad que regirá en Colombia, la cual es adoptada por Salud Total EPS-S para la identificación interna de los protegidos en condición de discapacidad, esta marcación se garantiza desde nuestro software de programas especiales.\nEl software de programas especiales es un aplicativo para el seguimiento de cohortes y la identificación interna de la población perteneciente a programas especiales, que principalmente para nuestra población en condición de discapacidad permite:\n• Garantizar un mecanismo de marcación en el sistema que permita compartirla con nuestros prestadores aliados en tiempo real.\n• Consolidación de la base de datos nacional de población en condición de discapacidad actualizada para uso de los lideres en cada sucursal y prestadores aliados.\n• Registrar seguimientos administrativos de la población en condición de discapacidad como población priorizada en Salud Total EPS-S.\n• Implementación de Políticas de Exoneración de copagos y cuotas moderadoras ligadas a la marcación de discapacidad.\n• Permitir una fuente primaria para la caracterización de la población identificada en condición de discapacidad.\n• Generar alertas en los aplicativos de Salud Total EPS-S que permita garantizar la atención con enfoque diferencial en cada momento de verdad que se tenga entre Salud Total EPS-S y su red prestadora y nuestros afiliados en condición de discapacidad.\nSalud Total EPS-S en cumplimiento de la normatividad vigente estableció la GUÍA PARA EL DIRECCIONAMIENTO AL PROCESO DE CERTIFICACIÓN DE DISCAPACIDAD-RESOLUCIÓN 1197 DE 2024 publicada en ALMERA bajo el código M-GRIE-GMP030, esta guía es un flujograma para el correcto direccionamiento de nuestros afiliados en condición de discapacidad para el proceso de certificación a cargo de las secretarias de salud. \nEl proceso de direccionamiento incluye la orientación para al proceso de certificación de discapacidad bajo lo establecido en la Resolución 1197 de 2024 y nuestra participación en el diagnóstico médico previo a la certificación en nuestra red contratada, así como las medidas de disminución de las barreras administrativas para el reconocimiento de la discapacidad en nuestra EPS, proceso que puede ser reconocido al mismo tiempo que nuestros afiliados en condición de discapacidad realizan el trámite ante las secretarias de salud.\nSalud Total EPS-S en cumplimiento de la normatividad vigente estableció la GUÍA PARA EL DIRECCIONAMIENTO AL PROCESO DE CERTIFICACIÓN DE DISCAPACIDAD-RESOLUCIÓN 1197 DE 2024 publicada en ALMERA bajo el código M-GRIE-GMP030, esta guía es un flujograma para el correcto direccionamiento de nuestros afiliados en condición de discapacidad para el proceso de certificación a cargo de las secretarias de salud. \nEl proceso de direccionamiento incluye la orientación para al proceso de certificación de discapacidad bajo lo establecido en la Resolución 1197 de 2024 y nuestra participación en el diagnóstico médico previo a la certificación en nuestra red contratada, así como las medidas de disminución de las barreras administrativas para el reconocimiento de la discapacidad en nuestra EPS, proceso que puede ser reconocido al mismo tiempo que nuestros afiliados en condición de discapacidad realizan el trámite ante las secretarias de salud.\nAjustes en el formato de historia clínica:\nDesde Salud Total EPS-S se cuenta con un formato de historia clínica propio, este aplicativo se llama “HC Especialistas” y es de uso exclusivo de la EPS, con la participación nacional de nuestro principal prestador aliado Virrey Solís IPS y otros prestadores que hacen uso del aplicativo en regiones específicas.\nEn el aplicativo, se han habilitado preguntas especificas relacionadas a la identificación de la condición de discapacidad, así como la opción de recopilar la información necesaria para el proceso de certificación de discapacidad que permita generar desde el aplicativo de HC Especialistas un documento denominado FORMATO DE INTERCONSULTA A EQUIPO MULTIDISCIPLINARIO PARA CERTIFICACIÓN DE DISCAPACIDAD.\nOtras de las acciones establecidas de enfoque diferencial en la atención a la población en condición de discapacidad se enumeran:\n• Priorización para la atención y respuestas de PQRS\n• Priorización para los procesos de referencia y contrareferencia.\n• Gestión de ajustes para la ATENCIÓN PREFERENCIAL EN LOS CENTROS DE SOLUCIONES EN SALUD."]
[8,"Número de personas afiliadas a la EAPB víctimas del conflicto armado interno",null,7,2025,"Frente a las victimas de conflicto armado según lo  reportado en el cubo sispro BDUA con corte a junio 2025 se registra para el territorio un total de 176 habitantes y del total de la población de la EAPB salud total  un 6,93% se encuentra identificada dentro de este grupo ",null,null,null,null,"En cumplimiento de la Ley 1448 de 2011 , Salud Total EPS-S ha desarrollado estrategias encaminadas a garantizar la atención de la población Victima del Conflicto Armado identificada dentro de su población afiliada. Estas acciones abarcan desde un modelo atención hasta los ajustes del sistema que permitan dar alcance a las necesidades de seguimiento y atención con enfoque diferencial. A continuación, se realiza una descripción total de las acciones institucionales, divididas de acuerdo como se plantean los componentes de implementación del Protocolo de Atención Integral en Salud con Enfoque Psicosocial.\nCOMPONENTE 1: COORDINACION\nSe ha establecido una matriz de priorización para las cohortes que se consideran de importancia para la gestión del riesgo en salud, incluyendo a la población victima del conflicto armado interno de Colombia, como paso inicial en el proceso de afiliación, seguimiento y atención de esta población. \nDe igual manera se ha realizado coordinación y presentación formal de los referentes ante los entes de inspección, vigilancia y control.\nAdicional, se ha realizado la coordinación anual con la Unidad de Victimas para el mantener activo el acceso a la plataforma VIVANTO.\nCOMPONENTE 2: DIVULGACION\nSalud Total ESPS-S incluye de manera periódica dentro de sus comités nacionales espacios destinados a la divulgación del protocolo de atención a victimas del conflicto armado, así como la difusión de estrategias para ser ejecutadas y difundidas en las sucursales.\nCOMPONENTE 3: CARACTERIZACION\nDentro del proceso de identificación de la población Victima del Conflicto Armado se ha realizado gestión de solicitud ante el MSPS de bases de datos de sentencias nacionales e internacionales como la Sentencia T-045 y las Sentencias de la CIDH, las cuales se reciben de manera periódica l de parte del MSPS.\nPara el proceso de caracterización poblacional contamos con acceso a los CUBOS de SISPRO y en el caso de las validaciones individuales de la población afiliada, se realiza mediante la plataforma VIVANTO.\nSe cuenta con el Software de Programas Especiales, que permite al interior de Salud Total EPS-S realizar la marcación interna e implementar políticas de exoneración, generar alertas en todos los aplicativos de la EPS, realizar seguimientos administrativos, demanda inducida, consolidar las cohortes para ser descargadas con la información de contacto y ubicación actualizada, permite a nuestros principales prestadores aliados que usan nuestros aplicativos acceder a la información en tiempo real.\nEl software de programas especiales nos permite establecer actividades destinadas a la atención diferencial con enfoque psicosocial:\n• Garantizar un mecanismo de marcación en el sistema que permita compartirla con nuestros prestadores aliados en tiempo real.\n• Consolidación de la base de datos nacional de PVCA actualizada para uso de los referentes de PVCA en cada sucursal.\n• Registrar seguimientos administrativos como soporte de la gestión normal de implementación de la Ruta para PVCA o requerimientos de entes de IVC.\n• Implementación de Políticas de Exoneración de CP y CM: (Circular 0018 de 2018 del MSPS y Resolución 405 de 2021)\nNuestros prestadores de red externa a nivel nacional tienen acceso a través de nuestra pagina web a la oficina virtual y por consiguiente al aplicativo de direccionamientos vía web, donde pueden solicitar cualquier servicio requerido y adicional consultar información del afiliado. \nCOMPONENTE 4: FORMACION\nSalud Total EPS-S en su plataforma UNITOTAL \ndesde el año 2023 en cumplimiento de la Resolución 1166 de 2018 inicia el proceso de formación del talento humano con una certificación de 60 horas de intensidad horaria. Este curso consta de 5 módulos, enfocando el primer modulo para la socialización general del protocolo de atención a VCA para la totalidad del talento humano y los 4 módulos restantes enfocados a la formación del talento humano que tiene contacto directo con los usuarios.  Este curso durante la vigencia 2025 sigue estando disponible y en ejecución. En este curso están participando a nivel nacional prestadores aliados como lo son Virrey Solis.\nCOMPONENTE 5: ATENCION\nSe cuenta con una ruta institucional de atención para garantizar el acceso de la población victima del conflicto armado, según lo establecido en el protocolo de atención.\nSalud Total EPS-S realiza el seguimiento en el proceso de atención teniendo en cuenta las 3 atenciones mínimas (Medicina General Integral, Atención Psicosocial y Enfermería con enfoque de promoción y mantenimiento de la salud), se realiza comparativo de los avances entre los años 2021, 2022, 2023, 2024 y la actual vigencia 2025. Se hace énfasis en la población beneficiaria de las 9 sentencias de la CIDH y este informe se socializa con las direcciones territoriales donde hacemos presencia.\nAUDITORIA:\nSe ha incluido desde la vigencia 2021, en los formatos de auditoria a la red prestadora de Salud Total EPS-S, ítems de evaluación de Victimas de Conflicto Armado, en la implementación del componente de atención a población Victima del conflicto Armado con enfoque psicosocial:\nFormatos: M-GINT-F500 AUDITORÍA INTEGRAL AMBULATORIA V 2.0  y M-GINT-F499 AUDITORÍA INTEGRAL HOSPITALARIA V 2.0.\nSe establece cambios dentro del cronograma de auditorias desde la vigencia 2021 en adelante."]
[9,"Número de personas afiliadas a la EAPB migrantes venezolanos",null,0,2025,"En el último informe de migrantes venezolanos en Colombia con corte a febrero del año 2024 no se registran datos para este municipio, sin embargo en el departamento se registran un total de 38453 personas de esta nacionalidad y para la EAPB salud total con corte a junio de 2025 se identifica que en este municipio el 0% de la población afiliada pertenece a este grupo ","SD","SD","SD","SD","Desde la EAPB se garantiza la atención igualitaria para todos sus afiliados independientemente de su nacionalidad "]
[]
["SALUD MENTAL Y EMOCIONAL",null,null,"Valor Indicador año anterior","Valor del Indicador","Año","Diferencias relativas","LI IC 95%","LS IC 95%","Análisis cualitativo del indicador en la EAPB respecto a al comportamiento del indicador del territorio","Análisis de la EAPB  con base en las preguntas orientadoras y otros aspectos que la EAPB considere.","Compromisos de la EAPB para lograr la transformación positiva del indicador en salud (Estructura, gestión del riesgo, resultado e impacto-brecha) de sus afiliados, y el aporte para el logro de la visión en salud del territorio."]
[1,"Proporción de personas afiliadas a la EAPB en programas de prevención del uso y consumo de sustancias psicoactivas legales e ilegales","Proporción de personas afiliadas a la EAPB en programas de prevención del uso y consumo de sustancias psicoactivas legales e ilegales",0,0,2024,{"$f":"(E29/D29)","v":{"$error":"#DIV/0!"}},{"$f":"EXP(LN(G29)-((1.96)*(1/E29^0.5)))","v":{"$error":"#DIV/0!"}},{"$f":"EXP(LN(G29)+((1.96)*(1/E29^0.5)))","v":{"$error":"#DIV/0!"}},"No se registraron casos para la EAPB durante 2023-2024, No se puede realizar comparación de este indicador con el territorio, puesto que no se tiene dato registrado de la entidad territorial","La eps Salud Total,  a traves de la red prestadora del territorio, realiza la  busqueda activa identificando a los protegidos que cumplan los criterios de ingreso a las actividades programadas. La busqueda activa se realiza a traves de las bases de datos e historias clinicas, sistema autorizador y reportes realizados por los jefes de  P y P de las diferentes sucursales. En las valoraciones integrales de curso de vida se implementan los tamizajes para la  medicion del riesgo  sobre el  cosumo  de sustancias psicoactivas; para la poblacion adolescente se aplica las escalas de: Fagerstrom y Richmond. El seguimiento se realiza a traves de demanda inducida; el objetivo es orientar a los protegidos sobre los servicios y se asignan las citas via telefonica. La eps Salud Total cuenta con estrategias de difusion de campañas masivas de educacion, informacion y comunicacion (IEC) generadas desde la coordinación Nacional de promocion y prevencion; Para el mes de Julio se cuenta con la pieza educativa \"como prevenir el consumo de alcohol y tabaquismo\". Se realiza auditoria para el cumplimiento de la ruta integral de atencion en salud mental y consumo de sustancias psicoactivas ","Dar continuidad y fortalecer las acciones ya establecidas, además de  participar activamente con la entidad territorial en  los espacios y actividades desplegadas  relacionada con estos programas "]
[2,"Tasa de intento de suicidio ","Tasa de intento de suicidio ",0,0,2024,{"$f":"(E30/D30)","v":{"$error":"#DIV/0!"}},{"$f":"EXP(LN(G30)-((1.96)*(1/E30^0.5)))","v":{"$error":"#DIV/0!"}},{"$f":"EXP(LN(G30)+((1.96)*(1/E30^0.5)))","v":{"$error":"#DIV/0!"}},"No se reportaron casos ni para la EAPB ni para la entidad territorial","Para el impacto de este indicador desde los servicios de promocion y prevencion: el objetivo es canalizar a los protegidos a los servicios de medicina general, consulta de psicologia, trabajo social  y especialidades medicas, el objetivo es buscar, identificar y  gestionar las barreras. Desde los servicios de baja complejidad se debe realizar la atencion incial, consulta prioritaria y medicina especializada, realizar la referencia y realizar seguimiento a la contrareferencia de estos protegidos. Desde el servicio de la UCI y alta complejidad: Verificar el tratamiento, atencion oportuna y de forma pertinente. Garantizar rede de atencion hospitalizaria y Unidad de cuidado intensiovo.  La eps Salud Total cuenta con estrategias de difusion de campañas masivas de educacion, informacion y comunicacion (IEC) generadas desde la coordinación Nacional de promocion y prevencion; Para el mes de Septiembre se cuenta con la pieza educativa programada \"Jornada de prevencion de intento de suicidio\".  Los seguimientos se realizan a traves de la Ips Virrey Solis  ","Dar continuidad y fortalecer las acciones ya establecidas, además de  participar activamente con la entidad territorial en  los espacios y actividades desplegadas  relacionada con estos programas "]
[3,"Tasa de mortalidad por lesiones autoinfligidas intencionalmente (suicidios)-EAPB","Tasa de mortalidad por lesiones autoinfligidas intencionalmente (suicidios)-EAPB",0,0,2024,{"$error":"#DIV/0!"},{"$error":"#DIV/0!"},{"$error":"#DIV/0!"},"No se reportaron casos para la EAPB, y tampoco se presentaron casos en la Entidad territorial","Adicional a las acciones del indicador anterior desde la EPS se cuenta con un manual administrativo para el manejo de la ideacion y conducta suicida; el documento presenta las políticas para la identificación, ingreso y seguimiento a fin de asegurar el acceso a los servicios en salud de la población que se encuentre con diagnóstico de ideación y/o conducta suicida. Protocolo para la atencion del paciente con intento de suicidio y sindrome de abstinencia de sustencias psicoactivas en unidades de urgencia de baja complejidad.","Dar continuidad y fortalecer las acciones ya establecidas, además de  participar activamente con la entidad territorial en  los espacios y actividades desplegadas  relacionada con estos programas "]
["SALUD SEXUAL Y REPRODUCTIVA EN MUJERES",null,null,"Valor Indicador año anterior","Valor del Indicador","Año","Diferencias relativas","LI IC 95%","LS IC 95%","Análisis cualitativo del indicador en la EAPB respecto a al comportamiento del indicador del territorio","Análisis de la EAPB  con base en las preguntas orientadoras y otros aspectos que la EAPB considere.","Compromisos de la EAPB para lograr la transformación positiva del indicador en salud (Estructura, gestión del riesgo, resultado e impacto-brecha) de sus afiliados, y el aporte para el logro de la visión en salud del territorio."]
[4,"Porcentaje de casos de violencia contra la mujer","Porcentaje de casos de violencia contra la mujer",0,0,2024,{"$f":"(E33/D33)","v":{"$error":"#DIV/0!"}},{"$f":"EXP(LN(G33)-((1.96)*(1/E33^0.5)))","v":{"$error":"#DIV/0!"}},{"$f":"EXP(LN(G33)+((1.96)*(1/E33^0.5)))","v":{"$error":"#DIV/0!"}},"No se resgistraron casos en la EAPB durante los periodos de 2023 y 2024, se identifica que en la entidad territorial se presenta un valor de 0,25% casos de violencia contra la mujer","La eps Salud total cuenta con un manual administrativo de violencia de genero; el cual se enfoca en  conocer el proceso para la atención integral de salud de los protegidos en esta condición ( cobertura, niveles de atención, y monitorización).\nDe manera semanal se identifican los casos notificados a través del aplicativo SIVIGILA compartido por la Dirección Nacional para su gestión y seguimiento según corresponda\nEquipo PYP en Sucursal verifica que la IPS realice atención y seguimiento.\n","* Garantizar la red de contratación vigente con las IPS prestadoras de forma que se pueda garantizar el acceso oportuno a las usuarias a los servicios necesarios. "]
[5,"Proporción del uso actual de métodos anticonceptivos de larga duración reversibles en mujeres de 13 a 49 años","Proporción del uso actual de métodos anticonceptivos de larga duración reversibles en mujeres de 13 a 49 años",7.69,3.85,2024,{"$f":"(E34/D34)","v":0.50065019505851749},{"$f":"EXP(LN(G34)-((1.96)*(1/E34^0.5)))","v":0.18438005589961465},{"$f":"EXP(LN(G34)+((1.96)*(1/E34^0.5)))","v":1.3594237000806522},"No se puede realizar comparación de este indicador con el territorio, puesto que no se tiene dato registrado de la entidad territorial, sin embargo si se evidencia que el resultado del indicador de la EAPB para el año observado respecto al año anterior no presenta una diferencia estadisticamente significativa","Desde la EAPB se tiene establecidas actividades  para mejorar este indicador :\n*Disposicion de poblacion pendiente de captacion al programa de planificacion familiar por medio de la plataforma SIGIRES\n* En articulación con IPS se realiza charlas educativas en salas de espera sobre la importancia de la planificación familiar, resaltando los beneficios de los métodos de planificación familiar de larga duración.\n* Intervenciones individuales en las consultas de promoción y mantenimiento de salud dirigidas a mujeres en edad fértil. \n*Difusión de piezas comunicativas en canales digitales sobre la importancia de la planificación familiar en mujeres de edad fértil. ","Realizar seguimiento a prestador primario de manera mensual, a través del comité primario. \nGarantizar la entrega de los métodos de planificación familiar de larga duración reversibles. \nParticipación de en mesas de trabajo que sean convocadas por parte de los entes territoriales. "]
[6,"Porcentaje de partos institucionales - EAPB","Porcentaje de partos institucionales - EAPB",0,100,2024,{"$error":"#DIV/0!"},{"$error":"#DIV/0!"},{"$error":"#DIV/0!"},"Para la EAPB no hay registro de partos institucionales durante el periodo 2023, por lo cual no se puede establecer diferencias estadisticamente significativas, respecto al comportamiento del territorio se registra un 100% de partos institucionales","Para la EAPB es una prioridad velar por la salud de sus gestantes por lo cual se hace seguimeinto continuo a la cohorte, se fortalece la demanda inducida durante las consultas estableciendo la importancia de asistir a los CPN y se insta a la asistencia a los servicios de salud para garantizar la atención adecuada y oportuna requerida no solo en el momento del parto sino en el transcurso de la gestación","*Continuar con las acciones establecidas\n* Fortalecer la red prestadora del servicio en red externa \n* Fortalecer el seguimiento al reporte SIGIRES. "]
[7,"Porcentaje de partos por cesárea","Porcentaje de partos por cesárea",0,100,2024,{"$error":"#DIV/0!"},{"$error":"#DIV/0!"},{"$error":"#DIV/0!"},"No se puede establecer una diferencia estadisticamente significativa respecto al año anterior, ya que no se presentaron casos en el año 2023, sin embargo al comparar con la  entidad territorial se puede evidenciar que esta tiene un  porcentaje de partos por cesarea  con un 43,28%","Desde la EAPB se realiza seguimiento diario al reportes de partos entregado por las  IPS hospitalarias, así como seguimiento a la gestion de la red de atencion de partos por el reporte semanal de gestantes en plataforma interna SIGIRES, se establecen además acciones de seguimiento por equipo auditor en las IPS de atencion del parto","Fortalecer las acciones ya establecidas de seguimiento para verificar la pertinencia de los aprtos por cesarea"]
[8,"Número de mujeres con acceso seguro a interrupción voluntaria del embarazo","Número de mujeres con acceso seguro a interrupción voluntaria del embarazo",0,0,2024,{"$error":"#DIV/0!"},{"$error":"#DIV/0!"},{"$error":"#DIV/0!"},"No se presentan casos para la EAPB durante 2023-2024, respecto a la entidad territorial no se tiene dato en ninguna fuente ","Para garantizar el cumplimiento de este indicador, desde la EAPB se tiene establecido un proceso así:\n1. Se cuenta con contrato con Profamilia\n2. Se realiza un Proceso administrativo para seguimiento \n3. Desde Dirección General reportan los casos de manera diaria para seguimiento desde la sucursal\n4. Seguimiento nominal para activación de ruta IVE, desde la sucursal\n","Continuar fortaleciendo la articulación con la red prestadora para garantizar de manera oportuna y disponibilidad permanente de los procedimientos.\nContinuar con las auditorías a la red prestadora para verificar la adherencia de la ruta"]
[9,"Proporción de gestantes que cuentan con serología trimestral","Proporción de gestantes que cuentan con serología trimestral",0,100,2024,{"$error":"#DIV/0!"},{"$error":"#DIV/0!"},{"$error":"#DIV/0!"},"No se puede establecer una diferencia estadisticamente significativa entre los dos periodos, ya que no se presentaron casos en el año 2024 y respecto a la entidad territorial no se puede evidenciar una comparación puesto que no se cuenta con ese dato","Con el fin de dar cumplimiento a este indicador desde la EAPB se realizan las siguientes acciones:\n1. Desde la IPS Virrey Solis ya cuenta con pruebas rápidas en cada unidad\n2. Toma de pruebas rápidas en el primer control prenatal\n3. Seguimiento nominal a los indicadores a través de la cohorte de gestantes","Realizar seguimiento a prestador primario de manera mensual, a través del comité primario.\nContinuar con las auditorías a la red prestadora para verificar la adherencia de la ruta"]
[10,"Tasa General de Fecundidad  - EAPB","Tasa General de Fecundidad  - EAPB",0,40,2024,{"$error":"#DIV/0!"},{"$error":"#DIV/0!"},{"$error":"#DIV/0!"},"No se puede establecer una diferencia estadisticamente significativa respecto al año anterior, ya que no se presentaron casos en ese periodo, sin embargo, al comparar con la  entidad territorial se puede evidenciar que esta tiene una mayor tasa de fecundidad con 31,31 nacimientos por cada 1000 mujeres en edad fértil","Frente a este indicador es importante para la EAPB que toda persona en capacidad de gestar, pueda tomar decisiones informacdas y seguras a través del acceso a la consulta preconcepcional, desde la EAPB se garantizan la disponilidad y entrega de los diferentes metodos anticonceptivos, se establecen jornadas  de  acceso a consulta sexual y productiva con priorizacion en la administracion de implantes subdermicos. Adicionalmente se realiza demanda inducida a la poblacion caracterizada en este rango de edad que aun no cuentan con metodo de planifcacion familiar, para que asistan a controles preventivos de salud sexual y reproductiva. ","Dar continuidad a las acciones establecidas desde la EAPB con el fin de garantizar acceso a una gestación segura de acuerdo cn la condición de cada protegida que así lo desee"]
[11,"Tasa de fecundidad en mujeres de 10 a 14 años - EAPB","Tasa de fecundidad en mujeres de 10 a 14 años - EAPB",0,0,2024,{"$error":"#DIV/0!"},{"$error":"#DIV/0!"},{"$error":"#DIV/0!"},"No se presentaron nacimientos en este grupo de edad durante los dos años  en la EAPB, y tampoco se presentaron casos en la Entidad territorial","Al ser una problacion de alto riesgo, desde la EAPB se garantizan los derechos sexuales y reproductivos de las menores, se crean estretagias de seguimiento y control, como demanda a aquellas niñas que refieren que han inicado vida sexual y que aun no cuentan con un metodo de planificacion familiar. se diseñan piezas comunicativas dirigidas a padres y/o cuidadores con el fin de fortalecer el rol protector y educativo que tienen ellos sobre las niñas en este rango de edad. Se garantizan la disponilidad y entrega de los diferentes metodos anticonceptivos, se garantiza el acceso a consultas con efoque de salud integral a adolescentes que sean accesibles, seguros y confidenciales donde las niñas puedan ser orientadas sin temor a ser juzgadas. Activacion de ruta oportuna en casos que se identifiquen abuso o reisgo del mismo. Tambien se generan unidades de analisis cuando se detecte fallas en la activacion de la ruta o se presenten barreras en la atencion dentro de la activacion. ","Dar continuidad a las acciones establecidas desde la EAPB con el fin de garantizar acceso a una gestación segura de acuerdo cn la condición de cada protegida que así lo desee"]
[12,"Tasa de fecundidad en mujeres de 15 a 19 años - EAPB","Tasa de fecundidad en mujeres de 15 a 19 años - EAPB",0,0,2024,{"$error":"#DIV/0!"},{"$error":"#DIV/0!"},{"$error":"#DIV/0!"},"No se presentaron casos en este grupo de edad para la EAPB,  en el territorio se registra  una Tasa de fecundidad  de mujeres de 15 a 19 años de 21,54 por cada 1000 nacidos vivos","El embarazo en adolescentes de igual forma se debe ver impactado en esta población con las acciones ya descritas en el item anterior y eso se puede evidenciar con el resultado del indicador para el año 2024 el cual disminuyo durante el año observado","Continuar cobn las acciones establecidas y trabajar articuladamente con la entidad territorial y la red contratada en todas las cciones de promoción y demanda a la prevención de los embarazos en esta población"]
[13,"Razón de morbilidad materna extrema","Razón de morbilidad materna extrema",0,0,2024,{"$f":"(E42/D42)","v":{"$error":"#DIV/0!"}},{"$f":"EXP(LN(G42)-((1.96)*(1/E42^0.5)))","v":{"$error":"#DIV/0!"}},{"$f":"EXP(LN(G42)+((1.96)*(1/E42^0.5)))","v":{"$error":"#DIV/0!"}},"Para este indicador no se presentaron casos durante los años 2023-2024 para la EAPB, y tampoco se presentaron casos en la Entidad territorial","Para impactar en este indicador la EAPB trabaja con las diferentes acciones intensificadas de vigilancia que se estan dando a nivel nacional, se cuenta con una analista de PYP de Dirección General que  realiza seguimiento telefónico posterior al egreso de la protegida notificada de acuerdo con lo establecido en la norma, a los  7, 14, 21 y 28 días después del egreso hospitalario y registra seguimientos en el Software de programas especiales aplicativo propio de la EPS y en la matriz establecida por el MSPS. Adicionalmente\nla líder cohorte realiza direccionamiento de casos a sucursal y el equipo PYP encargado realiza gestión de los pendientes de las protegidas y deja registro en el aplicativo propio.","Realizar la revisión diaria de los casos de morbilidad materna extrema en el Sivigila \nFortalecer la adecuada clasificación del riesgo gestacional al momento del ingreso al control prenatal.\nContinuar con el fortalecimiento a la red prestadora para lograr la realización de acciones e intervenciones individuales oportunas, para evitar las complicaciones del embarazo.\nRealizarseguimiento cada uno de los casos MME con fin reducir la morbilidad y mortalidad en gestantes y puérperas."]
[14,"Razón de Mortalidad Materna a 42 días","Razón de Mortalidad Materna a 42 días",0,0,2024,{"$f":"(E43/D43)","v":{"$error":"#DIV/0!"}},{"$f":"EXP(LN(G43)-((1.96)*(1/E43^0.5)))","v":{"$error":"#DIV/0!"}},{"$f":"EXP(LN(G43)+((1.96)*(1/E43^0.5)))","v":{"$error":"#DIV/0!"}},"Durante los periodos 2023 y 2024 no se presentaron casos de Mortalidad Materna en la EAPB, y tampoco se presentaron casos en la Entidad territorial","Adicional a las acciones descritas en el item anterior para el impacto de este indicador, se realiza seguimiento a prestador primario de manera mensual, a través del comité primario con el fin de socializar los avances en seguimiento a consulta preconcepcional, adherencia a los controles prenatales, activación de ruta IVE oportuna para Profamilia yseguimiento a la adherencia al control prenatal.\nDesde Salud Total se realiza unidad de análisis a cada uno de los eventos. Para identificar las oportunidades de mejora y se tiene establecida la asistencia a la mesa de seguridad materna de manera semanal ","Realizar la revisión diaria de los casos de morbilidad materna extrema en el Sivigila \nFortalecer la adecuada clasificación del riesgo gestacional al momento del ingreso al control prenatal.\nContinuar con el fortalecimiento a la red prestadora para lograr la realización de acciones e intervenciones individuales oportunas, para evitar las complicaciones del embarazo."]
[15,"Razón de Mortalidad Materna en mujeres indigenas afiliadas EAPB","Razón de Mortalidad Materna en mujeres indigenas afiliadas EAPB**",0,0,2024,{"$error":"#DIV/0!"},{"$error":"#DIV/0!"},{"$error":"#DIV/0!"},"Durante los periodos 2023 y 2024 no se presentaron casos de Mortalidad Materna en la EAPB para mujeres indigenas, y tampoco se presentaron casos en la Entidad territorial","Aunque no se han presentado casos reportados para esta población, se debe tener en cuenta que la EAPB debe garantizar el cumplimiento de la ruta  maternoperinatal en todas sus protegidas gestantes, en este indicador es importante instar a los prestadores en la prestación de los servicios con enfoque intercultural según corresponda","Participar en las actividades y mesas de interculturalidad propuestas por la entidad territorial en el marco del PARE"]
[16,"Razón de Mortalidad Materna en mujeres extranjeras -migración venezolana","Razón de Mortalidad Materna en mujeres extranjeras -migración venezolana**",0,0,2024,{"$error":"#DIV/0!"},{"$error":"#DIV/0!"},{"$error":"#DIV/0!"},"Durante los periodos 2023 y 2024 no se presentaron casos de Mortalidad Materna en la EAPB para migrantes venezolanas, y tampoco se presentaron casos en la Entidad territorial","Dentro del territorio no se presentaron casos de muerte materna en migrantes venezolanas, sin embargo y teniendo en cuenta el número de afiliados de esta nacionalidad es importante aclarar que estas protegidas reciben las mismas atenciones en terminos de cobertura y calidad que las protegidas denacionalidad colombiana","Garantizar la atención igualitaria en torno a la ruta maternoperinatal para estas protegidas de nacionalidad venezolana"]
[17,"Porcentaje de nacidos vivos con bajo peso al nacer - EAPB","Porcentaje de nacidos vivos con bajo peso al nacer - EAPB",0,0,2024,{"$error":"#DIV/0!"},{"$error":"#DIV/0!"},{"$error":"#DIV/0!"},"No se presentaron casos de nacidos vivos con bajo peso al nacer en la EAPB y respecto a la entidad territorial, se registro que un 5,88% de los recién nacidos fueron de bajo peso","Respecto a este indicador se debe tener en cuenta que el impacto del mismo se debe trabajar en torno a toda la ruta maternoperinatal garantizando las atenciones y generando las alertas necesarias en las gestantes que se identifiquen con bajo peso in útero, sin embargo y posterior al nacimiento es necesario garantizar la atención integral de estos RN, los prestadores que atienden los partos a los protegidos de salud total, generan bases de identificacion de estos menores donde notifican a la EAPB de manera periodica. ","Garantizar la atención integral de gestantes y recién nacidos en la red contratada \nLa EAPB tiene como compromiso relizar seguimiento y canalizacion a los niños con bajo peso al nacer notificados por los prestadores. "]
[18,"Tasa de incidencia de tumor maligno invasivo de cérvix","Tasa de incidencia de tumor maligno invasivo de cérvix",0,0,2024,{"$error":"#DIV/0!"},{"$error":"#DIV/0!"},{"$error":"#DIV/0!"},"No se presentaron casos en la EAPB para este evento, de manera puntual para este territorio no se encontro dato, se cuenta con la referencia del país dato del observatorio nacional de cancer registra que en el pais se estima una tasa  15,3 casos por cada 100.000 mujeres","Para el impacto de este indicador es importante fortalecer las acciones de IEC frente al autocuidado protección y prevención del VPH (vacunación y control) así como  la demanda inducida para la captación de los casos tempranamente a través de los examenes diagnósticos","Continuar con las acciones de IEC y demanda inducida tanto para promover vacunación de VPH y realización de controles periodicos para su detección"]
[19,"Oportunidad de tratamiento en días, tiempo entre el diagnostico hasta el primer tratamiento por tumor maligno de cuello uterino","Oportunidad de tratamiento en días, tiempo entre el diagnostico hasta el primer tratamiento por tumor maligno de cuello uterino",0,0,2024,{"$error":"#DIV/0!"},{"$error":"#DIV/0!"},{"$error":"#DIV/0!"},"Sin reporte de casos para la EAPB - y tampoco se presentaron casos en la Entidad territorial","Para garantizar el cumplimiento de este indicador, desde la EAPB se establece reporte de citologías alteradas de manera inmediata por parte de la  IPS VIRREY SOLIS  y sus laboratorios contratados: CPO y Synlab\nSe realizan mesas  de seguimiento semanales y quincenales con las IPS oncologicas de la EAPB con el fin de identificar barreras y opciones de mejora para el indicador","Continuar con los seguimientos estrictos a las IPS oncologicas de la red contratada"]
[20,"Oportunidad de tratamiento en días, tiempo entre el diagnostico hasta el primer tratamiento por tumor maligno de cuello uterino en la ruralidad","Oportunidad de tratamiento en días, tiempo entre el diagnostico hasta el primer tratamiento por tumor maligno de cuello uterino en la ruralidad",0,0,2024,{"$f":"(E49/D49)","v":{"$error":"#DIV/0!"}},{"$f":"EXP(LN(G49)-((1.96)*(1/E49^0.5)))","v":{"$error":"#DIV/0!"}},{"$f":"EXP(LN(G49)+((1.96)*(1/E49^0.5)))","v":{"$error":"#DIV/0!"}},"Sin reporte de casos para la  EAPB y sin dato registrado para la entidad territorial ","Para garantizar el cumplimiento de este indicador, desde la EAPB se establece reporte de citologías alteradas de manera inmediata por parte de la  IPS VIRREY SOLIS  y sus laboratorios contratados: CPO y Synlab\nSe realizan mesas  de seguimiento semanales y quincenales con las IPS oncologicas de la EAPB con el fin de identificar barreras y opciones de mejora para el indicador","Continuar con la solcitud de patologias positivas a las IPS y seguimientos a los protegidos con diagnostico incidente de Cuello uterino con el fin de apoyar el proceso desde la EAPB y lograr un inicio de tratamiento oportuno"]
[21,"Oportunidad de tratamiento en días, tiempo entre el diagnostico hasta el primer tratamiento por tumor maligno de mama","Oportunidad de tratamiento en días, tiempo entre el diagnostico hasta el primer tratamiento por tumor maligno de cuello uterino en la ruralidad",0,0,2024,{"$error":"#DIV/0!"},{"$error":"#DIV/0!"},{"$error":"#DIV/0!"},"Sin reporte de casos para la EAPB -y tampoco se presentaron casos en la Entidad territorial","Desde la EAPB se establece para este indicador Reporte de mamografía alteradas de manera inmediata por parte de la  IPS VIRREY SOLIS, se realiza seguimiento a las protegidas con diagnostico oncologicos con el objetivo de oportuno inicio de tratamiento y trabajo en conjunto con las IPS para estrategias de mejoramiento,  asistencia a reuniones convocadas por el Ente Territorial  Estrategias IEC Informacion, educacion y comunicación Plan de choque ","Continuar con los seguimientos a las protegidas con diagnostico incidente de mama con el fin de apoyar el proceso desde la EAPB y lograr un inicio de tratamiento oportuno"]
["SALUD DE NIÑOS, NIÑAS Y ADOLESCENTES",null,null,"Valor Indicador año anterior","Valor del Indicador","Año","Diferencias relativas","LI IC 95%","LS IC 95%","Análisis cualitativo del indicador en la EAPB respecto a al comportamiento del indicador del territorio","Análisis de la EAPB  con base en las preguntas orientadoras y otros aspectos que la EAPB considere.","Compromisos de la EAPB para lograr la transformación positiva del indicador en salud (Estructura, gestión del riesgo, resultado e impacto-brecha) de sus afiliados, y el aporte para el logro de la visión en salud del territorio."]
[22,"Proporción de niños y niñas de cinco años que cuentan con esquema completo de vacunación","Proporción de niños y niñas de cinco años que cuentan con esquema completo de vacunación",300,0,2024,{"$f":"(E52/D52)","v":0},{"$f":"EXP(LN(G52)-((1.96)*(1/E52^0.5)))","v":{"$error":"#NUM!"}},{"$f":"EXP(LN(G52)+((1.96)*(1/E52^0.5)))","v":{"$error":"#NUM!"}},"No se puede establecer una diferencia estadisticamente significativa en la EAPB durante estos periodos, ya que no se presentaron casos durante el año observado, no se cuenta con dato específico para este territorio, sin embargo, teniendo como referencia el dato del departamento se puede observar que la proporción de niños y niñas con esquema de vacunación completo a los cinco años es de un 88,3%","Con el fin de dar cumplimiento con este indicador, desde la EAPB se realiza demanda inducida a los niños que no cuentan con el esquema regular, a través de las diferenctes acciones de IEC como  \nenvío de mensajes de texto de forma masiva y publicaciones en plataformas digitales. Así mismo\nse realizan asistencias técnicas a los prestadores de manera semestral. ","* Fortalecer campañas informativas en la IPS \n* Realizar el seguimiento a las IPS encargadas del programa para verificación del cumplimiento. \n*Trabajar articuladamente con las IPS primarias de atención y con la entidad territorial en el despliegue de las jornadas programadas \n*Realizar seguimiento a prestador primario de manera periódica a las metas y estrategias de captación por trazadores en cada grupo etario. \n*Asistencia a los comités PAI convocados por el ente territorial de manera mensual. \n*Ejecución de campañas de vacunación nacional. "]
[23,"Porcentaje de transmisión materno infantil del VIH en menores de 2 años","Porcentaje de transmisión materno infantil del VIH en menores de 2 años",0,0,2022,{"$f":"(E53/D53)","v":{"$error":"#DIV/0!"}},{"$f":"EXP(LN(G53)-((1.96)*(1/E53^0.5)))","v":{"$error":"#DIV/0!"}},{"$f":"EXP(LN(G53)+((1.96)*(1/E53^0.5)))","v":{"$error":"#DIV/0!"}},"Frente al indicador de transmisión maternoinfantil de VIH en menores de dos años,  en este territorio la EAPB durante los años de referencia y observados 2021-2022 no  presento casos,  tampoco hubo casos para la entidad territorial","Desde la EAPB se realizan diferentes acciones para impactar este indicador: se garantiza las pruebas rapidas de tercera y cuarta generacion a las protegidas en estado de gestacion, desde que inician su control prenatal; si alguna de estas pruebas es reactiva, se realiza carga viral (ARN viral), una vez confirmado el diagnostico a  la paciente se le define el estadio y riesgo. Se indica parto por cesarea y no administracion de lactancia materna; por lo que se le garantiza al menor la formula lactea, profilaxis neonatal y las cargas virales correspondientes a las 4 semanas de edad y repetir a los 4 meses de edad.  La eps Salud Total cuenta con estrategias de difusion de campañas masivas de educacion, informacion y comunicacion (IEC) generadas desde la coordinación Nacional de promocion y prevencion.","Garantizar el cumplimiento de la ruta de atención a gestantes y fortalecer con todas las acciones ya planteadas"]
[24,"Proporción de menores de 18 años que cumplen el estándar de 5 días para el inicio de tratamiento de Leucemia Aguda Pediátrica - LAP","Proporción de menores de 18 años que cumplen el estándar de 5 días para el inicio de tratamiento de Leucemia Aguda Pediátrica - LAP",0,0,2024,{"$error":"#DIV/0!"},{"$error":"#DIV/0!"},{"$error":"#DIV/0!"},"No se  se presentaron casos de Leucemia en menor de 18 años en la EAPB durante los periodos 2023-2024 y tampoco se presentaron casos en la Entidad territorial"," Para garantizar el cumplimieinto de estre indicador, desde la EAPB, se establecen acciones tales como:\n- reuniónes con los prestadores tratante del modelo oncologico para las incidencias de CA en menores de 18 años.\n- Demanda inducida y gestión del riesgo a protegidos notificados por IPS tratante del modelo como no adherentes al programa.\n- Articulación con Auditores concurrentes de IPS Complementarias con el fin de realizar captacion temprana y seguimiento a protegidos con diagnostico presuntivo y/o confirmado.\n- Articulación con IPS complementarias para gestión de asignación de consultas o procedimientos o estudios solicitados por especialista para definición de tratamiento o complemento de este. ","Continuar con los seguimientos a los protegidos con diagnostico de Leucemia Aguda Pediatrica  con el fin de apoyar el proceso desde la EAPB y lograr un inicio de tratamiento oportuno"]
[25,"Proporción de niños con diagnóstico de hipotiroidismo congénito que reciben tratamiento","Proporción de niños con diagnóstico de hipotiroidismo congénito que reciben tratamiento",0,0,2024,{"$error":"#DIV/0!"},{"$error":"#DIV/0!"},{"$error":"#DIV/0!"},"Frente a este indicador,  en este territorio para la EAPB durante los años de referencia y observados 2023-2024 no se presentaron casos, adicionalmente no se encontro dato de comparación para esta entidad territorial","Con el fin de mantener este indicador en un resultado optimo, desde la EAPB se realiza seguimiento a los reportes de tsh alterados garantizando la retamizacion y diagnostico oportuno, semanalmente se reciben los casos notificados al aplicativo SIVIGILA para el monitoreo correspondiente y los casos confirmados se garantiza su cita para el inicio de traamiento oportuno","Continuar con las acciones establecidas con el fin de lograr un tratamiento oportuno para estos protegidos "]
[26,"Tasa de mortalidad infantil - EAPB","Tasa de mortalidad infantil - EAPB",0,0,2024,{"$error":"#DIV/0!"},{"$error":"#DIV/0!"},{"$error":"#DIV/0!"},"No se  presentaron casos en los periodos 2023-2024 para la EAPB, y tampoco se presentaron casos en la Entidad territorial","Se establecen actividades para mantener la mejora del indicador, tales como:\nSeguimiento a curso de vida de la primera infancia.\n2.Seguimientos completos a esquemas de vacunación.\n3.Seguimiento a la ruta materno-perinatal, de esta forma minimizar riesgo de que los menores nazcan con complicaciones en el momento de su nacimiento.\n4.Si, se identifican casos de hospitalización, se valida que los menores reciban de forma oportuna a su tratamiento dentro de su internación y seguimiento ambulatorio.\n5.En caso de mortalidad se genera unidad de análisis, y se articula plan de acción entre la EPS y la IPS para minimizar riesgos de mortalidad.","Fortalecer las actividades ya instauradas y participar activamente con la entidad territorial en todas las acciones encaminadas a la mitigación de este indicador"]
[27,"Tasa de mortalidad por EDA en menores de 5 años - EAPB","Tasa de mortalidad por EDA en menores de 5 años - EAPB",0,0,2024,{"$error":"#DIV/0!"},{"$error":"#DIV/0!"},{"$error":"#DIV/0!"},"Durante los años 2023 y 2024 no se presentaron casos de mortalidad por EDA en menores de cinco años  en la EAPB,   ly tampoco se presentaron casos en la Entidad territorial","La eps Salud Total cuenta con la guia de referencia rapida para la prevencion, diagnostico y tratamiento de la enfermedad diarreica aguda en menores de 5 años. Tambien se cuenta con un plan de accion para la vigilancia epidemiologica y atencion de enfermedad diarreica aguda- EDA. Desde la Ruta infantil de la eps Salud Total se recomienda la suplementacion con zinc a los menores de 5 años , con el fin de evitar la incidencia de EDA en niños con bajo peso al nacer. Se recomienda la suplementacion con zinc a los menores de 5 años , con el fin de evitar la incidencia de EDA en niños con deficit nutricional y delc recimiento que se encuentren por debajo de -1 DE en los indices P/E, T/E o P/T.  Se recomienda la suplementacion con zinc a los menores de 5 años , con el fin de evitar la incidencia de EDA en niños menores de 6 meses que no reciben lactancia materna. Para los niños mayores de 6 meses, se debe suplementar por 4 meses, en presentacion farmaceutica sin hierro.","Fortalecer las actividades ya instauradas y participar activamente con la entidad territorial en todas las acciones encaminadas a la mitigación de este indicador"]
[28,"Tasa de mortalidad por IRA en menores de 5 años - EAPB","Tasa de mortalidad por IRA en menores de 5 años - EAPB",0,0,2024,{"$f":"(E58/D58)","v":{"$error":"#DIV/0!"}},{"$f":"EXP(LN(G58)-((1.96)*(1/E58^0.5)))","v":{"$error":"#DIV/0!"}},{"$f":"EXP(LN(G58)+((1.96)*(1/E58^0.5)))","v":{"$error":"#DIV/0!"}},"Durante los años 2023 y 2024 no se presentaron casos de mortalidad por IRA en menores de cinco años en la EAPB, y tampoco se presentaron casos en la Entidad territorial","La eps Salud Total cuenta con la guia de referencia rapida para evaluar y calsificar al niño con tos o dificultad para respirar .  Además  implementa diversas estrategias para prevenir las Infecciones Respiratorias Agudas (IRA), enfocándose en la promoción de la salud y la prevención de enfermedades. Estas acciones incluyen campañas de vacunación, educación sobre hábitos saludables, como el lavado de manos y la importancia de la ventilación en espacios cerrados, y la promoción de la lactancia materna exclusiva en menores de seis meses. Además, la eps Salud Total trabajan en la detección temprana de casos, la atención oportuna y el seguimiento de pacientes con IRA a traves de la (demanda inducida), así como en la implementación de medidas para evitar la propagación de infecciones en la comunidad ","Fortalecer las actividades ya instauradas y participar activamente con la entidad territorial en todas las acciones encaminadas a la mitigación de este indicador"]
[29,"Tasa de mortalidad por desnutrición en menores de 5 años","Tasa de mortalidad por desnutrición en menores de 5 años",0,0,2024,{"$f":"(E59/D59)","v":{"$error":"#DIV/0!"}},{"$f":"EXP(LN(G59)-((1.96)*(1/E59^0.5)))","v":{"$error":"#DIV/0!"}},{"$f":"EXP(LN(G59)+((1.96)*(1/E59^0.5)))","v":{"$error":"#DIV/0!"}},"No se presentaron casos de DNT en menores de 5 años en la EAPB  y tampoco se presentaron casos en la Entidad territorial","La eps Salud Total a traves de la red prestadora realiza la busqueda activa institucional de estos casos y la busqueda activa comunitaria, con el fin de intervenir y garantizarle la ruta al protegido menor de 5 años con diagnostico de desnutricion debera recibir los siguientes controles: el pimero debera ser con pediatra a los 7 dias despues de haber iniciado tratamiento. Segundo control:  A los 15 dias  con nutricion. Tercer control pediatria a los 45 dias. Cuarto control de nutricion: al mes (75 dias de iniciado el tratamiento), Quinto control: pediatra a los (105 dias de iniciado el tratamiento), Seguimiento administrativo a los protegidos (demanda inducida). Seguimiento en el aplicativo Sispro, Realizacion de asistencias tecnicas y unidades de analisis, se finaliza con auditorias al proceso.  Se cuenta con una lista de chequeo para asistencia tecnica a la red de prestadores en el manejo de la desnutricion aguda en niños menores de 0-59 meses , Guia para el manejo integral de la desnutricion aguda en niñ@s menores de 5 años. Cuenta con una ruta institucional de atencion para malnutricion infantil y por ultimo un lineamiento para el manejo integrado de la desnutricion aguda moderada en niñ@s de 0 a 59 meses de edad ","Fortalecer las actividades ya instauradas y participar activamente con la entidad territorial en todas las acciones encaminadas a la mitigación de este indicador"]
["ENFERMEDADES CRÓNICAS NO TRANSMISIBLES",null,null,"Valor Indicador año anterior","Valor del Indicador","Año","Diferencias relativas","LI IC 95%","LS IC 95%","Análisis cualitativo del indicador en la EAPB respecto a al comportamiento del indicador del territorio","Análisis de la EAPB  con base en las preguntas orientadoras y otros aspectos que la EAPB considere.","Compromisos de la EAPB para lograr la transformación positiva del indicador en salud (Estructura, gestión del riesgo, resultado e impacto-brecha) de sus afiliados, y el aporte para el logro de la visión en salud del territorio."]
[30,"Tasa de mortalidad prematura por enfermedades cronicas no transmisibles (Cancer, enfermedades del sistema circulatorio,Diabetes, Enfermedades del sistema respiratorio) ","Tasa de mortalidad prematura por enfermedades cronicas no transmisibles (Cancer, enfermedades del sistema circulatorio,Diabetes, Enfermedades del sistema respiratorio) ",0,0,2024,{"$f":"(E61/D61)","v":{"$error":"#DIV/0!"}},{"$f":"EXP(LN(G61)-((1.96)*(1/E61^0.5)))","v":{"$error":"#DIV/0!"}},{"$f":"EXP(LN(G61)+((1.96)*(1/E61^0.5)))","v":{"$error":"#DIV/0!"}},"No se pueden establecer diferencias estadisticamente significativas  para la EAPB, ya que no se tienen casos para los años 2023-2024, al comparar con el indicador de la entidad territorial se puede evidenciar  que  la ET presento 122,3 casos de muertes por ECNT por cada 100.000 habitantes entre 30 y 70 años de edad","Desde la EAPB se cuenta con acciones enfocadas para la captacion temprana de protegidos con sospecha diagnostica de enfermedades cronicas.\nSe realizan Tamizaciones en poblacion general segun lo indique el curso de vida.  se tienen acciones de seguimiento a protegidos ya diagnosticados, así como educacion articulada con IPS primarias y complementarias en habitos y estilos de vida saludables para evitar posibles causales de la enfermedad.","Mejorar la calidad de la atencion en los diferentes  programas implementados. Seguimiento a los protegidos a traves de un programa de demanda inducida y acompañamiento desde la consulta medica promoviendo el autocuidado. Realizar auditorias a IPS contratadas."]
[31,"Proporción de población afiliada del territorio identificada por la EAPB con factores de riesgo como tabaquismo, sedentarismo o consumo de alcohol","Proporción de población afiliada del territorio identificada por la EAPB con factores de riesgo como tabaquismo, sedentarismo o consumo de alcohol",0,0,2024,{"$f":"(E62/D62)","v":{"$error":"#DIV/0!"}},{"$f":"EXP(LN(G62)-((1.96)*(1/E62^0.5)))","v":{"$error":"#DIV/0!"}},{"$f":"EXP(LN(G62)+((1.96)*(1/E62^0.5)))","v":{"$error":"#DIV/0!"}},"No se presentaron casos en ninguno de los dos años para la EAPB, en cuanto a la  entidad territorial no es posible realizar la comparación, ya que no se cuenta con el dato de la ET ","Para lograr esta identificación de esta población, desde la EAPB se despliegan las siguientes acciones * Difusión de posters educativos sobre la prevención de factores de riesgo desde la EAPB. \n* Desde IPS se realiza revisión de antecedentes relacionados con factores de riesgo asosciados a tabaquismo, sedentarismo o consumo de alcohol y si se identifica que usuario acepta que realiza consumo de alguna de estas sustancias y desea abandonarla se activa ruta para ingreso a programa para la cesación de consumo de tabaco y se solicita interconsulta con psiquiatria.","* Refuerzo de la socialización de factores de riesgo a la población afiliada"]
[32,"Captación de hipertensión arterial de personas de 18 a 69 años","Captación de hipertensión arterial de personas de 18 a 69 años",10.93,42.51,2024,3.889295516925892,2.8794898093797183,5.2532290854810562,"El resultado de este indicador presenta una diferencias estadisticamente significativa más alta en la EAPB respecto al año anterior, y no se presentaron casos en la Entidad territorial","Desde la EAPB en articulación por prestadores en consulta individual se evalúan factores de riesgo, estilos de vida y valoración integral (toma de cifras tensionales). \nCapacitación al talento humano en IPS sobre la importancia de diagnosticar y reportar correctamente casos sospechosos. O confirmación de casos de manera oportuna. ","Fortalecer el seguimiento a ruta cardio metabólica en comités mensuales con el prestador \nContinuar con la validación de bases de datos para ubicar a población sin controles en los últimos 12 meses. "]
[33,"Captación de diabetes mellitus de personas de 18 a 69 años","Captación de diabetes mellitus de personas de 18 a 69 años",142.44999999999999,0,2024,0,{"$error":"#NUM!"},{"$error":"#NUM!"},"El resultado de este indicador no permite establecer diferencias estadisticamente significativas ya que no se presentaron casos el año observado, y tampoco se presentaron casos en la Entidad territorial","la EAPB realiza articulacion con el prestador para identificar a protegidos que tangan factores de riesgo (edad, sobre peso, comorbilidades, antecedentes familiares, sedentarismo) con el fin de caracterizar, priorizar, y activar  rutas a esa poblacion . Adicionalmente se busca junto con el prestador crear estrategias de educacion a la poblacion en la importancia de asistir a controles medicos, en crear habitos saludables.","Fortalecer el seguimiento a ruta cardio metabólica en comités mensuales con el prestador \nContinuar con la validación de bases de datos para ubicar a población sin controles en los últimos 12 meses. "]
[34,"Proporción de pacientes hipertensos controlados","Proporción de pacientes hipertensos controlados",0,0,2024,{"$error":"#DIV/0!"},{"$error":"#DIV/0!"},{"$error":"#DIV/0!"},"No se identificaron casos para la EAPB durante los dos periodos 2023-2024, no se cuenta con dato de la entidad territorial","Con el fin de dar cumplimiento a este indicador  desde la EAPB se gestionan reuniones de seguimiento a las IPS Primarias, además de la validacion de oportunidad de citas con el fin de que los protegidos cuenten con su diagnostico de Hipertension controlada, se realiza remision de protegidos no estudiados a las IPS y desde la sucursal se garantiza la asistencia a reuniones convocadas por el Ente Territorial, igualmente se cuenta con   Estrategias IEC Informacion, educacion y comunicación","Continuar con el seguimiento a las IPS Primarias para impactar en la calidad de vida de los protegidos, gestion Farmaceutica por parte de la EAPB "]
[35,"Proporción de pacientes diabéticos controlados","Proporción de pacientes diabéticos controlados",0,0,2024,{"$error":"#DIV/0!"},{"$error":"#DIV/0!"},{"$error":"#DIV/0!"},"No se identifico registro de este dato para estos años ni en la EAPB ni en la entidad territorial","Con el fin de dar cumplimiento a este indicador  desde la EAPB se realiza: monitoreo mediante asistencias técnicas a IPS auditando ordenamientos de glicosiladas según tiempos estipulados por la ruta y GPC para controlados y no controlados.\n- Envió a IPS de reportes de manera constante sobre resultados notificados por laboratorios externos a IPS Primarias.\n- Seguimiento al cargue de base de CAC de manera mensual por las IPS.\n- Envió de protegidos no estudiados y no controlados a las IPS para captación y seguimiento.","Continuar con el seguimiento a las IPS Primarias para impactar en la calidad de vida de los protegidos, gestion Farmaceutica por parte de la EAPB "]
[36,"Oportunidad de tratamiento en días, tiempo entre el diagnostico hasta el primer tratamiento por tumor maligno de colon y recto","Oportunidad de tratamiento en días, tiempo entre el diagnostico hasta el primer tratamiento por tumor maligno de colon y recto",0,0,2024,{"$f":"(E67/D67)","v":{"$error":"#DIV/0!"}},{"$f":"EXP(LN(G67)-((1.96)*(1/E67^0.5)))","v":{"$error":"#DIV/0!"}},{"$f":"EXP(LN(G67)+((1.96)*(1/E67^0.5)))","v":{"$error":"#DIV/0!"}},"No se presentaron casos en el 2023-2024 para la EAPB, respecto a la entidad territorial se pudo determinar que la oportunidad del inicio de tratamiento es de 3,5 días","Desde la sucursal se realizan seguimientos a los protegidos con diagnostico oncologicos con el objetivo de verificar el oportuno inicio de tratamiento","Continuar con los seguimientos a los protegidos con diagnostico incidente de Colon y Recto con el fin de apoyar el proceso desde la EAPB y lograr un inicio de tratamiento oportuno"]
[37,"Porcentaje de hombres con diagnóstico de cáncer de próstata identificado en estadios tempranos","Porcentaje de hombres con diagnóstico de cáncer de próstata identificado en estadios tempranos",0,0,2024,{"$f":"(E68/D68)","v":{"$error":"#DIV/0!"}},{"$f":"EXP(LN(G68)-((1.96)*(1/E68^0.5)))","v":{"$error":"#DIV/0!"}},{"$f":"EXP(LN(G68)+((1.96)*(1/E68^0.5)))","v":{"$error":"#DIV/0!"}},"No se presentaron casos en el 2023-2024 para la EAPB,  en comparación con la entidad territorial  se puede evidenciar un porcentaje de 16,67% de hombres identificados en estadios tempranos para el cáncer de prostata","Para lograr  resultados optimos con este indicador desde la EAPB se realiza seguimiento  a las IPS Primarias frente a la realizacion del tamizaje  a los protegidos para detectar el cancer de prostata,  demanda inducida a través de estrategias IEC Informacion, educacion y comunicación","Continuar con el seguimiento a las IPS en cuanto a la realizacion de los tamizajes para confirmar o descartar oportunamente"]
[38,"Oportunidad de diagnostico en días, tiempo entre la consulta en donde se realiza remisión por sospecha clínica asociada a cáncer (tumor maligno de próstata) hasta la confirmación diagnóstica","Oportunidad de diagnostico en días, tiempo entre la consulta en donde se realiza remisión por sospecha clínica asociada a cáncer (tumor maligno de próstata) hasta la confirmación diagnóstica",0,0,2024,{"$f":"(E69/D69)","v":{"$error":"#DIV/0!"}},{"$f":"EXP(LN(G69)-((1.96)*(1/E69^0.5)))","v":{"$error":"#DIV/0!"}},{"$f":"EXP(LN(G69)+((1.96)*(1/E69^0.5)))","v":{"$error":"#DIV/0!"}},"No se presentaron casos en el 2023-2024 para la EAPB, respecto a la entidad territorial se pudo determinar que la oportunidad del diagnóstico es de  0,5 días","Con el fin de lograr un amejora en este indicador, desde salud total  se realiza seguimiento permanente a los usuarios entre remision, cita de urologia, estudios complementariosy entrega de resultados, adicionalmente se establecen reportes internos de cumplimiento y analisis de demoras para aplicar acciones correctivas de forma oportuna ","Continuar con el seguimiento a las IPS en cuanto a la realizacion de los tamizajes para confirmar o descartar oportunamente"]
[39,"Tasa ajustada de mortalidad por enfermedades hipertensivas","Tasa ajustada de mortalidad por enfermedades hipertensivas",0,0,2024,{"$error":"#DIV/0!"},{"$error":"#DIV/0!"},{"$error":"#DIV/0!"},"No se puede establecer una diferencia estadistica para este evento en la EAPB ya que no se presentaron casos durante el año 2023 y 2024, respecto al comportamiento del territorio se evidencia una tasa de  muertes por enfermedades hipertensivas de 27,04 casos por cada 100.000 habitantes","Para la EAPB el impacto de este indicador esta dado por todas las acciones que ya se han descrito frente a la captación oportuna de estos usuarios con estos diagnosticos y las mismas para mantener la mayor proporción de pacientes controlados con esta patología  ","Dar continuidad con las acciones descritas anteriormente y participar activamente con la entidad territorial en todas las estrategias promovidas para el mejoramiento de este indicador"]
[40,"Tasa ajustada de mortalidad por enfermedades hipertensivas en mujeres","Tasa ajustada de mortalidad por enfermedades hipertensivas en mujeres",0,0,2024,{"$error":"#DIV/0!"},{"$error":"#DIV/0!"},{"$error":"#DIV/0!"},"No se puede establecer una diferencia estadistica para este evento en la EAPB ya que no se presentaron casos durante el año 2023 y 2024, respecto al comportamiento del territorio se evidencia una tasa de  muertes por enfermedades hipertensivas en mujeres de 36,14 casos  por cada 100.000 mujeres","Para la EAPB el impacto de este indicador esta dado por todas las acciones que ya se han descrito frente a la captación oportuna de estos usuarios con estos diagnosticos y las mismas para mantener la mayor proporción de pacientes controlados con esta patología  ","Dar continuidad con las acciones descritas anteriormente y participar activamente con la entidad territorial en todas las estrategias promovidas para el mejoramiento de este indicador"]
[41,"Tasa ajustada de mortalidad por enfermedades hipertensivas en hombres","Tasa ajustada de mortalidad por enfermedades hipertensivas en hombres",0,0,2024,{"$error":"#DIV/0!"},{"$error":"#DIV/0!"},{"$error":"#DIV/0!"},"No se puede establecer una diferencia estadistica para este evento en la EAPB ya que no se presentaron casos durante el año 2023-2024, respecto al comportamiento del territorio se evidencia una tasa de  muertes por enfermedades hipertensivas en hombres de 15,33 casos  por cada 100.000 hombres","Para la EAPB el impacto de este indicador esta dado por todas las acciones que ya se han descrito frente a la captación oportuna de estos usuarios con estos diagnosticos y las mismas para mantener la mayor proporción de pacientes controlados con esta patología  ","Dar continuidad con las acciones descritas anteriormente y participar activamente con la entidad territorial en todas las estrategias promovidas para el mejoramiento de este indicador"]
[42,"Tasa de mortalidad prematura por enfermedades del sistema circulatorio","Tasa de mortalidad prematura por enfermedades del sistema circulatorio",0,0,2024,{"$error":"#DIV/0!"},{"$error":"#DIV/0!"},{"$error":"#DIV/0!"},"No se presentaron casos durante el año 2023-2024 en la EAPB,  respecto al comportamiento del territorio se evidencia una tasa de  mortalidad prematura por enfermedades del sistema circulatorio de 61,15 casos  por cada 100.000 habitantes de 30 a 70 años","Es importante enfocar la prevención de este indicador en la identificación de factores de riesgo en la población lo cual se hace a través de las consultas y escalas ya descritas y a partir de su identificación la derivación oportuna a los programas correspondientes garantizando la atención integral de estos usuarios ","Dar continuidad con las acciones descritas anteriormente y participar activamente con la entidad territorial en todas las estrategias promovidas para el mejoramiento de este indicador"]
[43,"Tasa ajustada de mortalidad por diabetes mellitus","Tasa ajustada de mortalidad por diabetes mellitus",0,0,2024,{"$error":"#DIV/0!"},{"$error":"#DIV/0!"},{"$error":"#DIV/0!"},"No se presentan casos para este evento en la EAPB durante los años 2023 y 2024, el indicador registrado para la ET muestra que por cada 100.000 habitantes  se presentan 3,14 muertes por diabetes mellitus ","Para la EAPB el impacto de este indicador esta dado por todas las acciones que ya se han descrito frente a la captación oportuna de estos usuarios con estos diagnosticos y las mismas para mantener la mayor proporción de pacientes controlados con esta patología  ","Dar continuidad con las acciones descritas anteriormente y participar activamente con la entidad territorial en todas las estrategias promovidas para el mejoramiento de este indicador"]
[44,"Tasa de mortalidad prematura por diabetes mellitus","Tasa de mortalidad prematura por diabetes mellitus",0,0,2024,{"$f":"(E75/D75)","v":{"$error":"#DIV/0!"}},{"$f":"EXP(LN(G75)-((1.96)*(1/E75^0.5)))","v":{"$error":"#DIV/0!"}},{"$f":"EXP(LN(G75)+((1.96)*(1/E75^0.5)))","v":{"$error":"#DIV/0!"}},"No se presentan casos para este evento en la EAPB durante los años 2023 y 2024, y tampoco se presentaron casos en la Entidad territorial","Para la EAPB el impacto de este indicador esta dado por todas las acciones que ya se han descrito frente a la captación oportuna de estos usuarios con estos diagnosticos y las mismas para mantener la mayor proporción de pacientes controlados con esta patología  ","Dar continuidad con las acciones descritas anteriormente y participar activamente con la entidad territorial en todas las estrategias promovidas para el mejoramiento de este indicador"]
[45,"Tasa ajustada de mortalidad por enfermedades crónicas de las vías respiratorias inferiores","Tasa ajustada de mortalidad por enfermedades crónicas de las vías respiratorias inferiores",0,0,2024,{"$f":"(E76/D76)","v":{"$error":"#DIV/0!"}},{"$f":"EXP(LN(G76)-((1.96)*(1/E76^0.5)))","v":{"$error":"#DIV/0!"}},{"$f":"EXP(LN(G76)+((1.96)*(1/E76^0.5)))","v":{"$error":"#DIV/0!"}},"No se presentan casos para este evento en la EAPB durante los años 2023 y 2024, respecto al comportamiento del territorio se evidencia una tasa de  muertes por enfermedades crónicas de las vías respiratorias inferiores de 9,42 casos por cada 100.000 habitantes","Con el fin de mitigar este indicador desde la EAPB se realiza seguimiento a los protegidos con diagnostico de enfermedades respiratorias cronicas y resolviendo barreras de acceso con el objetivo de reducir la mortalidad  Estrategias IEC Informacion, educacion y comunicación","Continuar con los seguimientos a los protegidos con diagnostico enfermedades respiratorias cronicas con el fin de apoyar el proceso desde la EAPB, definir los lineamientos tecnicos de los protegidos que se encuentran en la cohorte "]
[46,"Tasa ajustada de mortalidad por neoplasias","Tasa ajustada de mortalidad por neoplasias",0,0,2024,{"$f":"(E77/D77)","v":{"$error":"#DIV/0!"}},{"$f":"EXP(LN(G77)-((1.96)*(1/E77^0.5)))","v":{"$error":"#DIV/0!"}},{"$f":"EXP(LN(G77)+((1.96)*(1/E77^0.5)))","v":{"$error":"#DIV/0!"}},"No se puede establecer una diferencia estadistica para este evento en la EAPB ya que no se presentaron casos durante el año 2023 y 2024, respecto al comportamiento del territorio se evidencia una tasa de  muertes por neoplasias de 51,68 casos por cada 100.000 habitantes","Desde la EAPB se realiza seguimiento a los protegidos con diagnostico de oncologico  y resolviendo barreras de acceso con el objetivo de reducir la mortalidad, así como el despliegue de  estrategias IEC Informacion, educacion y comunicación","Seguiento a la IPS desde la Promoción de los servicios de salud en tamización y acciones de prevención."]
[47,"Tasa de mortalidad por neoplasias (tumores) en personas de 30 a 70 años-EAPB","Tasa de mortalidad por neoplasias (tumores) en personas de 30 a 70 años-EAPB",0,0,2024,{"$f":"(E78/D78)","v":{"$error":"#DIV/0!"}},{"$f":"EXP(LN(G78)-((1.96)*(1/E78^0.5)))","v":{"$error":"#DIV/0!"}},{"$f":"EXP(LN(G78)+((1.96)*(1/E78^0.5)))","v":{"$error":"#DIV/0!"}},"No se puede establecer una diferencia estadistica para este evento en la EAPB ya que no se presentaron casos durante el año 2023 y 2024, respecto al comportamiento del territorio se evidencia una  tasa de  mortalidad prematura por neoplasias de 61,15 casos  por cada 100.000 habitantes de 30 a 70 años","Desde la EAPB se realiza seguimiento periodico a la IPS  desde el tamizaje de los cánceres priorizados hasta la confirmación diagnóstica e inicio de tratamiento.","Seguiento a la IPS desde la Promoción de los servicios de salud en tamizadión y acciones de prevención."]
[48,"Tasa de mortalidad por enfermedades cronicas no transmisibles en afiliados - urbano","Tasa de mortalidad por enfermedades cronicas no transmisibles en afiliados - urbano",0,0,2024,{"$f":"(E79/D79)","v":{"$error":"#DIV/0!"}},{"$f":"EXP(LN(G79)-((1.96)*(1/E79^0.5)))","v":{"$error":"#DIV/0!"}},{"$f":"EXP(LN(G79)+((1.96)*(1/E79^0.5)))","v":{"$error":"#DIV/0!"}},"No se presentan casos para este evento en la EAPB durante los años 2023 y 2024, respecto al comportamiento del territorio se evidencia una  tasa de  mortalidad por enfermedades cronicas no transmisibles en zona urbana de 269,87 casos  por cada 100.000 habitantes","Desde la EAPB se identifican acciones para la mitigación de este indicador tales como: Acciones de seguimiento a la demanda inducida para los tamizajes a la IPS en detección temprana del cáncer de cérvix, mama y próstata. Direccionar los resultados alterados a la ruta oncológica trabajando por alcanzar estadíos tempranos del cáncer\n\nSeguimiento a la captación realizada por las IPS para ingreso a las rutas de valoracion integral por curso de vida.","Hacer encuentros mensuales de seguimiento y refuerzo de la ruta oncológica de tal manera que logremos direccionar los casos desde la presunción del cáncer."]
[49,"Tasa de mortalidad por enfermedades cronicas no transmisibles en afiliados - rural","Tasa de mortalidad por enfermedades cronicas no transmisibles en afiliados - rural",0,0,2024,{"$f":"(E80/D80)","v":{"$error":"#DIV/0!"}},{"$f":"EXP(LN(G80)-((1.96)*(1/E80^0.5)))","v":{"$error":"#DIV/0!"}},{"$f":"EXP(LN(G80)+((1.96)*(1/E80^0.5)))","v":{"$error":"#DIV/0!"}},"Para este indicador en la EAPB no se presentaron casos y respecto a la entidad territorial  registra una tasa de  mortalidad por ECNT en área rural  de 78,35 casos  por cada 100.000 habitantes","Desde la EAPB se identifican acciones para la mitigación de este indicador tales como: Acciones de seguimiento a la demanda inducida para los tamizajes a la IPS en detección temprana del cáncer de cérvix, mama y próstata. Direccionar los resultados alterados a la ruta oncológica trabajando por alcanzar estadíos tempranos del cáncer\n\nSeguimiento a la captación realizada por las IPS para ingreso a las rutas de valoracion integral por curso de vida.","Hacer encuentros mensuales de seguimiento y refuerzo de la ruta oncológica de tal manera que logremos direccionar los casos desde la presunción del cáncer."]
["ENFERMEDADES INFECCIOSAS Y TRANSMISIBLES",null,null,"Valor Indicador año anterior","Valor del Indicador","Año","Diferencias relativas","LI IC 95%","LS IC 95%","Análisis cualitativo del indicador en la EAPB respecto a al comportamiento del indicador del territorio","Análisis de la EAPB  con base en las preguntas orientadoras y otros aspectos que la EAPB considere.","Compromisos de la EAPB para lograr la transformación positiva del indicador en salud (Estructura, gestión del riesgo, resultado e impacto-brecha) de sus afiliados, y el aporte para el logro de la visión en salud del territorio."]
[50,"Tasa de incidencia de VIH","Tasa de incidencia de VIH",0,0,2024,{"$f":"(E82/D82)","v":{"$error":"#DIV/0!"}},{"$f":"EXP(LN(G82)-((1.96)*(1/E82^0.5)))","v":{"$error":"#DIV/0!"}},{"$f":"EXP(LN(G82)+((1.96)*(1/E82^0.5)))","v":{"$error":"#DIV/0!"}},"No se presentan casos para este evento en la EAPB durante los años 2023 y 2024,  y tampoco se presentaron casos en la Entidad territorial","Desde la EAPB con el fin de mitigar este indicador se tienen establecidas acciones tales como: Garantizar la tamización para VIH  trabajar en la reducción del estigma y la discriminación para la prevención del VIH                                              Ofertar en la prevención combinada, que incluye el uso de condones, la PrEP (Profilaxis Pre-Exposición)                                                                    Detección temprana y el acceso oportuno al tratamiento a través de la ips de atención integral","Dar continuidad con las acciones descritas anteriormente y participar activamente con la entidad territorial en todas las estrategias promovidas para el mejoramiento de este indicador"]
[51,"Tasa ajustada de mortalidad por tuberculosis","Tasa ajustada de mortalidad por tuberculosis",0,0,2024,{"$f":"(E83/D83)","v":{"$error":"#DIV/0!"}},{"$f":"EXP(LN(G83)-((1.96)*(1/E83^0.5)))","v":{"$error":"#DIV/0!"}},{"$f":"EXP(LN(G83)+((1.96)*(1/E83^0.5)))","v":{"$error":"#DIV/0!"}},"No se presentan casos para este evento en la EAPB, y tampoco se presentaron casos en la Entidad territorial","Para el impacto de este indicador desde la eps Salud total a traves de su red prestadora  mensualmente se realiza la captacion de sintomaticos respiratorios, con el fin de diagnosticar tuberculosis. Al tener un diagnostico confirmado se realiza la demanda inducida del protegido, con el fin de asignar cita por medicina general. Por demanda espontanea se realiza la captacion (recurso de citas en el PAU). Ingreso al programa - valoracion - diligenciamiento de la ficha- notificacion-entrega de la formula para gestionar los medicamentos correspondientes al diagnostico del protegido- seguimiento al protegido- programacion de los controles correspondientes con el fin de garantizar la culminacion del tratamiento. En caso de perdida de seguimiento y tratamiento se notifica a la secretaria del Municipio correspondiente. ","* Garantizar seguimientos a los programas y mantener comunicación continua con los encargados de los programas y protegidos"]
[52,"Tasa ajustada de mortalidad por enfermedades transmisibles","Tasa ajustada de mortalidad por enfermedades transmisibles",0,0,2024,{"$f":"(E84/D84)","v":{"$error":"#DIV/0!"}},{"$f":"EXP(LN(G84)-((1.96)*(1/E84^0.5)))","v":{"$error":"#DIV/0!"}},{"$f":"EXP(LN(G84)+((1.96)*(1/E84^0.5)))","v":{"$error":"#DIV/0!"}},"No se presentan casos para este evento en la EAPB, para la ET se registra  una tasa de mortalidad por enfermedades transmisibles de 9,42 casos por cada 100.000 habitantes","Para el impacto de este indicador es importante identificar estos grupos y realizar las acciones de vigilancia y manejo correspondientes para cada evento especifico","Trabajar articuladamente con la red prestadora y la entidad territorial de acuerdo a la necesidad o prioridad de este grupo"]
[53,"Letalidad de malaria-EAPB","Letalidad de malaria-EAPB",0,0,2023,{"$f":"(E85/D85)","v":{"$error":"#DIV/0!"}},{"$f":"EXP(LN(G85)-((1.96)*(1/E85^0.5)))","v":{"$error":"#DIV/0!"}},{"$f":"EXP(LN(G85)+((1.96)*(1/E85^0.5)))","v":{"$error":"#DIV/0!"}},"Durante los años 2022 y 2023 no se presentaron casos de muerte por malaria en la EAPB y tampoco se presentaron casos en la Entidad territorial","La eps Salud total implementa diversas acciones para prevenir y tratar la malaria, incluyendo la promoción de medidas de prevención, el diagnóstico temprano y el tratamiento oportuno de los casos confirmados, así como la educación a la comunidad sobre la enfermedad.  Educación y Promoción de la Salud:\nLas EPS realizan campañas informativas para enseñar a la población sobre los riesgos de la malaria, cómo prevenir las picaduras de mosquitos (principal vector), y la importancia de buscar atención médica ante la presencia de síntomas. Uso de Repelentes:\nRecomiendan el uso de repelentes de insectos, especialmente en zonas de alta transmisión. Diagnóstico Temprano:\nFacilita el acceso a pruebas de diagnóstico rápido de malaria en centros de salud y laboratorios cercanos a la población. Atención Integral:\nOfrece atención médica completa para casos de malaria, incluyendo el tratamiento de complicaciones y la prevención de recaídas. Vigilancia Epidemiológica:\nRealizan seguimiento de casos y brotes de malaria para identificar áreas de riesgo y ajustar las estrategias de prevención y control. \nCapacitación del Personal de Salud:\nCapacita a los profesionales de la salud sobre el manejo de casos de malaria, incluyendo el diagnóstico, tratamiento y prevención de complicaciones. ","Trabajar articuladamente con la red prestadora y la entidad territorial de acuerdo a la necesidad o prioridad de este grupo"]
[54,"Letalidad de Dengue grave-EAPB","Letalidad de Dengue grave-EAPB",0,0,2023,{"$f":"(E86/D86)","v":{"$error":"#DIV/0!"}},{"$f":"EXP(LN(G86)-((1.96)*(1/E86^0.5)))","v":{"$error":"#DIV/0!"}},{"$f":"EXP(LN(G86)+((1.96)*(1/E86^0.5)))","v":{"$error":"#DIV/0!"}},"Durante los años 2022 y 2023 no se presentaron casos de muerte por dengue grave en la EAPB, y tampoco se presentaron casos en la Entidad territorial","La eps Salud Total implementa diversas estrategias para prevenir y tratar el dengue, incluyendo la vigilancia epidemiológica, el control vectorial, la promoción de la salud y la atención integral de casos. Vigilancia epidemiológica:\nRealiza seguimiento de casos de dengue, notificando inmediatamente los casos graves y fatales, y cumpliendo con los lineamientos de vigilancia virológica.  Promoción de la salud:\nSe realizan campañas de educación y comunicación para informar a la población sobre la prevención del dengue, incluyendo la importancia de eliminar criaderos, usar repelentes y buscar atención médica temprana. \nCapacitación del personal:\nLa eps Salud total capacita a su personal de salud en la identificación, diagnóstico y manejo de casos de dengue, así como en la prevención y control de la enfermedad. \nOrganización de la red prestadora:\nAseguran la disponibilidad de servicios de salud para la atención de casos de dengue, incluyendo la organización de la red de prestadores, el flujo de recursos y la gestión de la calidad de la atención. Tratamiento y  Atención integral:\nLas eps Salud Total garantiza una atención integral a los pacientes con dengue, incluyendo el diagnóstico temprano, la estratificación de riesgo, el tratamiento adecuado según la fase de la enfermedad y el seguimiento para evitar complicaciones. De acuerdo al nivel de atencion que requiera el protegido \nConfirmación diagnóstica:\nSe asegura la confirmación de casos de dengue, incluyendo la toma de muestras para pruebas de laboratorio (suero, tejidos) y su envío a laboratorios de referencia. \nManejo de casos:\nSe aplican los lineamientos de manejo de casos de dengue, incluyendo la hidratación adecuada, el control de la fiebre y el manejo de complicaciones en casos graves; garantizar la atencion oportuna. \nSeguimiento y evaluación:\nSe realiza seguimiento a los protegidos para evaluar la evolución de la enfermedad y prevenir complicaciones. ","Trabajar articuladamente con la red prestadora y la entidad territorial de acuerdo a la necesidad o prioridad de este grupo"]
[55,"Letalidad de Infección Respiratoria Aguda Grave (IRAG)","Letalidad de Infección Respiratoria Aguda Grave (IRAG)",0,0,2023,{"$error":"#DIV/0!"},{"$error":"#DIV/0!"},{"$error":"#DIV/0!"},"No se presentaron casos durante 2023-2024 en la EAPB; y tampoco se presentaron casos en la Entidad territorial","La eps Salud Total  implementa diversas estrategias para prevenir las Infecciones Respiratorias Agudas (IRA), enfocándose en la promoción de la salud y la prevención de enfermedades. Estas acciones incluyen campañas de vacunación, educación sobre hábitos saludables, como el lavado de manos y la importancia de la ventilación en espacios cerrados, y la promoción de la lactancia materna exclusiva en menores de seis meses. Además, la eps Salud Total trabajan en la detección temprana de casos, la atención oportuna y el seguimiento de pacientes con IRA a traves de la (demanda inducida), así como en la implementación de medidas para evitar la propagación de infecciones en la comunidad ","Trabajar articuladamente con la red prestadora y la entidad territorial de acuerdo a la necesidad o prioridad de este grupo"]
[56,"Número de personas atendidas por fiebre amarilla","Número de personas atendidas por fiebre amarilla",0,0,2024,{"$f":"(E88/D88)","v":{"$error":"#DIV/0!"}},{"$f":"EXP(LN(G88)-((1.96)*(1/E88^0.5)))","v":{"$error":"#DIV/0!"}},{"$f":"EXP(LN(G88)+((1.96)*(1/E88^0.5)))","v":{"$error":"#DIV/0!"}},"Durante los años 2023 y 2024 no se presentaron atenciones por Fiebre Amarilla ni en la EAPB ni el la Entidad Territorial"," La eps Salud Total cuenta con estrategias de difusion de campañas masivas de educacion, informacion y comunicacion (IEC) generadas desde la coordinación Nacional de promocion y prevencion; Para el mes de Julio se cuenta con la pieza educativa \"como prevenir la fiebre amarilla\". Se han divulgado e implementado estrategias para la captacion de usuarios","*Trabajar articuladamente con la red prestadora y la entidad territorial de acuerdo a la necesidad o prioridad de este grupo\n* Garantizar seguimientos a los comites y socializar continuamente puntos de vacunación "]
["OTROS INDICADORES RELEVANTES PARA LA EAPB EN EL TERRITORIO",null,null,"Valor Indicador año anterior","Valor del Indicador","Año","Diferencias relativas","LI IC 95%","LS IC 95%","Análisis cualitativo del indicador en la EAPB respecto a al comportamiento del indicador del territorio","Análisis de la EAPB  con base en las preguntas orientadoras y otros aspectos que la EAPB considere.","Compromisos de la EAPB para lograr la transformación positiva del indicador en salud (Estructura, gestión del riesgo, resultado e impacto-brecha) de sus afiliados, y el aporte para el logro de la visión en salud del territorio."]
[null,null,null,null,null,null,{"$f":"(E90/D90)","v":{"$error":"#DIV/0!"}},{"$f":"EXP(LN(G90)-((1.96)*(1/E90^0.5)))","v":{"$error":"#DIV/0!"}},{"$f":"EXP(LN(G90)+((1.96)*(1/E90^0.5)))","v":{"$error":"#DIV/0!"}}]
[null,null,null,null,null,null,{"$f":"(E91/D91)","v":{"$error":"#DIV/0!"}},{"$f":"EXP(LN(G91)-((1.96)*(1/E91^0.5)))","v":{"$error":"#DIV/0!"}},{"$f":"EXP(LN(G91)+((1.96)*(1/E91^0.5)))","v":{"$error":"#DIV/0!"}}]
[null,null,null,null,null,null,{"$f":"(E92/D92)","v":{"$error":"#DIV/0!"}},{"$f":"EXP(LN(G92)-((1.96)*(1/E92^0.5)))","v":{"$error":"#DIV/0!"}},{"$f":"EXP(LN(G92)+((1.96)*(1/E92^0.5)))","v":{"$error":"#DIV/0!"}}]
[null,null,null,null,null,null,{"$f":"(E93/D93)","v":{"$error":"#DIV/0!"}},{"$f":"EXP(LN(G93)-((1.96)*(1/E93^0.5)))","v":{"$error":"#DIV/0!"}},{"$f":"EXP(LN(G93)+((1.96)*(1/E93^0.5)))","v":{"$error":"#DIV/0!"}}]
[null,null,null,null,null,null,{"$error":"#DIV/0!"},{"$error":"#DIV/0!"},{"$error":"#DIV/0!"}]
[null,null,null,null,null,null,{"$f":"(E95/D95)","v":{"$error":"#DIV/0!"}},{"$f":"EXP(LN(G95)-((1.96)*(1/E95^0.5)))","v":{"$error":"#DIV/0!"}},{"$f":"EXP(LN(G95)+((1.96)*(1/E95^0.5)))","v":{"$error":"#DIV/0!"}}]

{"sheet":"Listas","index":3,"n_rows":71,"n_cols":8,"rows_kept":71,"cut":false,"hidden":true,"merged":[]}
["CONTRIBUTIVO",null,null," 05 ANTIOQUIA",null,"CCF033",null,"ALIANSALUD ENTIDAD PROMOTORA DE SALUD S.A."]
["SUBSIDIADO",null,null," 08 ATLANTICO",null,"CCF050",null,"ANASWAYUU"]
["CONTRIBUTIVO Y SUBSIDIADO",null,null," 11 BOGOTA D.C.",null,"CCF055",null,"ASOCIACIÓN INDÍGENA DEL CAUCA"]
["EXCEPCIÓN",null,null," 13 BOLIVAR",null,"CCF102",null,"ASOCIACIÓN INDÍGENA DEL CESAR Y LA GUAJIRA  DUSAKAWI"]
[null,null,null," 15 BOYACA",null,"CCFC20",null,"ASOCIACIÓN MUTUAL EMPRESA SOLIDARIA DE SALUD DE NARIÑO E.S.S. EMSSANAR E.S.S."]
["SI",null,null," 17 CALDAS",null,"CCFC33",null,"ASOCIACIÓN MUTUAL LA ESPERANZA ASMET  SALUD"]
["NO",null,null," 18 CAQUETA",null,"CCFC50",null,"ASOCIACION MUTUAL SER EMPRESA SOLIDARIA DE SALUD EPS-S MUTUAL SER EPS-S"]
[null,null,null," 19 CAUCA",null,"CCFC55",null,"ASOCIACIÓN MUTUAL SER EMPRESA SOLIDARIA DE SALUD ESS"]
[null,null,null," 20 CESAR",null,"EAS016",null,"CAJA DE COMPENSACIÓN FAMILIAR C.C.F. DEL ORIENTE COLOMBIANO \"COMFAORIENTE\""]
[null,null,null," 23 CORDOBA",null,"EAS027",null,"CAJA DE COMPENSACIÓN FAMILIAR DE SUCRE"]
[null,null,null," 25 CUNDINAMARCA",null,"EPS001",null,"CAJA DE COMPENSACIÓN FAMILIAR DEL CHOCÓ COMFACHOCO"]
[null,null,null," 27 CHOCO",null,"EPS002",null,"CAJA DE DE COMPENSACION FAMILIAR  CAJACOPI ATLANTICO"]
[null,null,null," 41 HUILA",null,"EPS005",null,"CAPITAL SALUD"]
[null,null,null," 44 LA GUAJIRA",null,"EPS008",null,"CAPRESOCA  EPS"]
[null,null,null," 47 MAGDALENA",null,"EPS010",null,"CAPRUIS"]
[null,null,null," 50 META",null,"EPS012",null,"COMFENALCO  VALLE  E.P.S."]
[null,null,null," 52 NARIÑO",null,"EPS017",null,"COMPENSAR   E.P.S."]
[null,null,null," 54 NORTE DE SANTANDER",null,"EPS018",null,"COOPERATIVA DE SALUD Y DESARROLLO INTEGRAL ZONA SUR ORIENTAL DE CARTAGENA - COOSALUD"]
[null,null,null," 63 QUINDIO",null,"EPS025",null,"COOPERATIVA DE SALUD Y DESARROLLO INTEGRAL ZONA SUR ORIENTAL DE CARTAGENA LTDA. COOSALUD E.S.S."]
[null,null,null," 66 RISARALDA",null,"EPS037",null,"E.P.S.  FAMISANAR  LTDA."]
[null,null,null," 68 SANTANDER",null,"EPS040",null,"E.P.S.  SANITAS  S.A."]
[null,null,null," 70 SUCRE",null,"EPS041",null,"ECOPETROL"]
[null,null,null," 73 TOLIMA",null,"EPS042",null,"EMPRESAS PUBLICAS DE MEDELLIN-DEPARTAMENTO MEDICO"]
[null,null,null," 76 VALLE DEL CAUCA",null,"EPS046",null,"EPS SERVICIO OCCIDENTAL DE SALUD  S.A. - EPS S.O.S. S.A."]
[null,null,null," 81 ARAUCA",null,"EPS048",null,"EPS Y MEDICINA PREPAGADA SURAMERICANA S.A"]
[null,null,null," 85 CASANARE",null,"EPSC25",null,"FONDO DE PASIVO SOCIAL DE LOS FERROCARRILES NALES"]
[null,null,null," 86 PUTUMAYO",null,"EPSC34",null,"FUNDACIÓN SALUD MIA EPS"]
[null,null,null," 88 SAN ANDRES PROVIDENCIA Y SANTA CATALINA",null,"EPSI01",null,"LA NUEVA EPS S.A."]
[null,null,null," 91 AMAZONAS",null,"EPSI03",null,"MAGISTERIO"]
[null,null,null," 94 GUAINIA",null,"EPSI04",null,"MALLAMAS"]
[null,null,null," 95 GUAVIARE",null,"EPSI05",null,"PIJAOS SALUD EPSI"]
[null,null,null," 97 VAUPES",null,"EPSI06",null,"SALUD  TOTAL  S.A.  E.P.S."]
[null,null,null," 99 VICHADA",null,"EPSIC1",null,"SAVIA SALUD EPS"]
[null,null,null,null,null,"EPSIC3",null,"UATLANTICO"]
[null,null,null,null,null,"EPSIC4",null,"UCARTAGENA"]
[null,null,null,null,null,"EPSIC5",null,"UCAUCA"]
[null,null,null,null,null,"EPSIC6",null,"UCORDOBA"]
[null,null,null,null,null,"EPSS01",null,"UNARIÑO"]
[null,null,null,null,null,"EPSS02",null,"UNISALUD"]
[null,null,null,null,null,"EPSS05",null,"UPTC"]
[null,null,null,null,null,"EPSS08",null,"UVALLE"]
[null,null,null,null,null,"EPSS10"]
[null,null,null,null,null,"EPSS12"]
[null,null,null,null,null,"EPSS17"]
[null,null,null,null,null,"EPSS18"]
[null,null,null,null,null,"EPSS34"]
[null,null,null,null,null,"EPSS37"]
[null,null,null,null,null,"EPSS40"]
[null,null,null,null,null,"EPSS41"]
[null,null,null,null,null,"EPSS42"]
[null,null,null,null,null,"EPSS46"]
[null,null,null,null,null,"EPSS48"]
[null,null,null,null,null,"ESS024"]
[null,null,null,null,null,"ESS062"]
[null,null,null,null,null,"ESS118"]
[null,null,null,null,null,"ESS207"]
[null,null,null,null,null,"ESSC07"]
[null,null,null,null,null,"ESSC18"]
[null,null,null,null,null,"ESSC24"]
[null,null,null,null,null,"ESSC62"]
[null,null,null,null,null,"RES002"]
[null,null,null,null,null,"RES004"]
[null,null,null,null,null,"RES005"]
[null,null,null,null,null,"RES006"]
[null,null,null,null,null,"RES007"]
[null,null,null,null,null,"RES008"]
[null,null,null,null,null,"RES009"]
[null,null,null,null,null,"RES010"]
[null,null,null,null,null,"RES012"]
[null,null,null,null,null,"RES013"]
[null,null,null,null,null,"RES014"]

{"sheet":"DptosMpios","index":4,"n_rows":126,"n_cols":33,"rows_kept":126,"cut":false,"hidden":true,"merged":[]}
[" 05 ANTIOQUIA"," 08 ATLANTICO"," 11 BOGOTA D.C."," 13 BOLIVAR"," 15 BOYACA"," 17 CALDAS"," 18 CAQUETA"," 19 CAUCA"," 20 CESAR"," 23 CORDOBA"," 25 CUNDINAMARCA"," 27 CHOCO"," 41 HUILA"," 44 LA GUAJIRA"," 47 MAGDALENA"," 50 META"," 52 NARIÑO"," 54 NORTE DE SANTANDER"," 63 QUINDIO"," 66 RISARALDA"," 68 SANTANDER"," 70 SUCRE"," 73 TOLIMA"," 76 VALLE DEL CAUCA"," 81 ARAUCA"," 85 CASANARE"," 86 PUTUMAYO"," 88 SAN ANDRES PROVIDENCIA Y SANTA CATALINA"," 91 AMAZONAS"," 94 GUAINIA"," 95 GUAVIARE"," 97 VAUPES"," 99 VICHADA"]
["05001 - MEDELLIN","08001 - BARRANQUILLA","11001 - BOGOTA D.C.","13001 - CARTAGENA","15001 - TUNJA","17001 - MANIZALES","18001 - FLORENCIA","19001 - POPAYAN","20001 - VALLEDUPAR","23001 - MONTERIA","25001 - AGUA DE DIOS","27001 - QUIBDO","41001 - NEIVA","44001 - RIOHACHA","47001 - SANTA MARTA","50001 - VILLAVICENCIO","52001 - PASTO","54001 - CUCUTA","63001 - ARMENIA","66001 - PEREIRA","68001 - BUCARAMANGA","70001 - SINCELEJO","73001 - IBAGUE","76001 - CALI","81001 - ARAUCA","85001 - YOPAL","86001 - MOCOA","88001 - SAN ANDRES","91001 - LETICIA","94001 - INIRIDA","95001 - SAN JOSE DEL GUAVIARE","97001 - MITU","99001 - PUERTO CARREÑO"]
["05002 - ABEJORRAL","08078 - BARANOA",null,"13006 - ACHI","15022 - ALMEIDA","17013 - AGUADAS","18029 - ALBANIA","19022 - ALMAGUER","20011 - AGUACHICA","23068 - AYAPEL","25019 - ALBAN","27006 - ACANDI","41006 - ACEVEDO","44035 - ALBANIA","47030 - ALGARROBO","50006 - ACACIAS","52019 - ALBAN","54003 - ABREGO","63111 - BUENAVISTA","66045 - APIA","68013 - AGUADA","70110 - BUENAVISTA","73024 - ALPUJARRA","76020 - ALCALA","81065 - ARAUQUITA","85010 - AGUAZUL","86219 - COLON","88564 - PROVIDENCIA","91263 - EL ENCANTO","94343 - BARRANCO MINAS","95015 - CALAMAR","97161 - CARURU","99524 - LA PRIMAVERA"]
["05004 - ABRIAQUI","08137 - CAMPO DE LA CRUZ",null,"13030 - ALTOS DEL ROSARIO","15047 - AQUITANIA","17042 - ANSERMA","18094 - BELEN DE LOS ANDAQUIES","19050 - ARGELIA","20013 - AGUSTIN CODAZZI","23079 - BUENAVISTA","25035 - ANAPOIMA","27025 - ALTO BAUDO","41013 - AGRADO","44078 - BARRANCAS","47053 - ARACATACA","50110 - BARRANCA DE UPIA","52022 - ALDANA","54051 - ARBOLEDAS","63130 - CALARCA","66075 - BALBOA","68020 - ALBANIA","70124 - CAIMITO","73026 - ALVARADO","76036 - ANDALUCIA","81220 - CRAVO NORTE","85015 - CHAMEZA","86320 - ORITO",null,"91405 - LA CHORRERA","94663 - MAPIRIPANA","95025 - EL RETORNO","97511 - PACOA","99624 - SANTA ROSALIA"]
["05021 - ALEJANDRIA","08141 - CANDELARIA",null,"13042 - ARENAL","15051 - ARCABUCO","17050 - ARANZAZU","18150 - CARTAGENA DEL CHAIRA","19075 - BALBOA","20032 - ASTREA","23090 - CANALETE","25040 - ANOLAIMA","27050 - ATRATO","41016 - AIPE","44090 - DIBULLA","47058 - ARIGUANI","50124 - CABUYARO","52036 - ANCUYA","54099 - BOCHALEMA","63190 - CIRCASIA","66088 - BELEN DE UMBRIA","68051 - ARATOCA","70204 - COLOSO","73030 - AMBALEMA","76041 - ANSERMANUEVO","81300 - FORTUL","85125 - HATO COROZAL","86568 - PUERTO ASIS",null,"91407 - LA PEDRERA","94883 - SAN FELIPE","95200 - MIRAFLORES","97666 - TARAIRA","99773 - CUMARIBO"]
["05030 - AMAGA","08296 - GALAPA"," ","13052 - ARJONA","15087 - BELEN","17088 - BELALCAZAR","18205 - CURILLO","19100 - BOLIVAR","20045 - BECERRIL","23162 - CERETE","25053 - ARBELAEZ","27073 - BAGADO","41020 - ALGECIRAS","44098 - DISTRACCION","47161 - CERRO SAN ANTONIO","50150 - CASTILLA LA NUEVA","52051 - ARBOLEDA","54109 - BUCARASICA","63212 - CORDOBA","66170 - DOSQUEBRADAS","68077 - BARBOSA","70215 - COROZAL","73043 - ANZOATEGUI","76054 - ARGELIA","81591 - PUERTO RONDON","85136 - LA SALINA","86569 - PUERTO CAICEDO",null,"91430 - LA VICTORIA","94884 - PUERTO COLOMBIA",null,"97777 - PAPUNAUA"]
["05031 - AMALFI","08372 - JUAN DE ACOSTA",null,"13062 - ARROYOHONDO","15090 - BERBEO","17174 - CHINCHINA","18247 - EL DONCELLO","19110 - BUENOS AIRES","20060 - BOSCONIA","23168 - CHIMA","25086 - BELTRAN","27075 - BAHIA SOLANO","41026 - ALTAMIRA","44110 - EL MOLINO","47170 - CHIBOLO","50223 - CUBARRAL","52079 - BARBACOAS","54125 - CACOTA","63272 - FILANDIA","66318 - GUATICA","68079 - BARICHARA","70221 - COVEÑAS","73055 - ARMERO","76100 - BOLIVAR","81736 - SARAVENA","85139 - MANI","86571 - PUERTO GUZMAN",null,"91460 - MIRITI - PARANA","94885 - LA GUADALUPE",null,"97889 - YAVARATE"]
["05034 - ANDES","08421 - LURUACO",null,"13074 - BARRANCO DE LOBA","15092 - BETEITIVA","17272 - FILADELFIA","18256 - EL PAUJIL","19130 - CAJIBIO","20175 - CHIMICHAGUA","23182 - CHINU","25095 - BITUIMA","27077 - BAJO BAUDO","41078 - BARAYA","44279 - FONSECA","47189 - CIENAGA","50226 - CUMARAL","52083 - BELEN","54128 - CACHIRA","63302 - GENOVA","66383 - LA CELIA","68081 - BARRANCABERMEJA","70230 - CHALAN","73067 - ATACO","76109 - BUENAVENTURA","81794 - TAME","85162 - MONTERREY","86573 - PUERTO LEGUIZAMO",null,"91530 - PUERTO ALEGRIA","94886 - CACAHUAL"]
["05036 - ANGELOPOLIS","08433 - MALAMBO",null,"13140 - CALAMAR","15097 - BOAVITA","17380 - LA DORADA","18410 - LA MONTAÑITA","19137 - CALDONO","20178 - CHIRIGUANA","23189 - CIENAGA DE ORO","25099 - BOJACA","27099 - BOJAYA","41132 - CAMPOALEGRE","44378 - HATONUEVO","47205 - CONCORDIA","50245 - EL CALVARIO","52110 - BUESACO","54172 - CHINACOTA","63401 - LA TEBAIDA","66400 - LA VIRGINIA","68092 - BETULIA","70233 - EL ROBLE","73124 - CAJAMARCA","76111 - GUADALAJARA DE BUGA",null,"85225 - NUNCHIA","86749 - SIBUNDOY",null,"91536 - PUERTO ARICA","94887 - PANA PANA"]
["05038 - ANGOSTURA","08436 - MANATI",null,"13160 - CANTAGALLO","15104 - BOYACA","17388 - LA MERCED","18460 - MILAN","19142 - CALOTO","20228 - CURUMANI","23300 - COTORRA","25120 - CABRERA","27135 - EL CANTON DEL SAN PABLO","41206 - COLOMBIA","44420 - LA JAGUA DEL PILAR","47245 - EL BANCO","50251 - EL CASTILLO","52203 - COLON","54174 - CHITAGA","63470 - MONTENEGRO","66440 - MARSELLA","68101 - BOLIVAR","70235 - GALERAS","73148 - CARMEN DE APICALA","76113 - BUGALAGRANDE",null,"85230 - OROCUE","86755 - SAN FRANCISCO",null,"91540 - PUERTO NARIÑO","94888 - MORICHAL"]
["05040 - ANORI","08520 - PALMAR DE VARELA",null,"13188 - CICUCO","15106 - BRICEÑO","17433 - MANZANARES","18479 - MORELIA","19212 - CORINTO","20238 - EL COPEY","23350 - LA APARTADA","25123 - CACHIPAY","27150 - CARMEN DEL DARIEN","41244 - ELIAS","44430 - MAICAO","47258 - EL PIÑON","50270 - EL DORADO","52207 - CONSACA","54206 - CONVENCION","63548 - PIJAO","66456 - MISTRATO","68121 - CABRERA","70265 - GUARANDA","73152 - CASABIANCA","76122 - CAICEDONIA",null,"85250 - PAZ DE ARIPORO","86757 - SAN MIGUEL",null,"91669 - PUERTO SANTANDER"]
["05042 - SANTAFE DE ANTIOQUIA","08549 - PIOJO",null,"13212 - CORDOBA","15109 - BUENAVISTA","17442 - MARMATO","18592 - PUERTO RICO","19256 - EL TAMBO","20250 - EL PASO","23417 - LORICA","25126 - CAJICA","27160 - CERTEGUI","41298 - GARZON","44560 - MANAURE","47268 - EL RETEN","50287 - FUENTE DE ORO","52210 - CONTADERO","54223 - CUCUTILLA","63594 - QUIMBAYA","66572 - PUEBLO RICO","68132 - CALIFORNIA","70400 - LA UNION","73168 - CHAPARRAL","76126 - CALIMA",null,"85263 - PORE","86760 - SANTIAGO",null,"91798 - TARAPACA"]
["05044 - ANZA","08558 - POLONUEVO",null,"13222 - CLEMENCIA","15114 - BUSBANZA","17444 - MARQUETALIA","18610 - SAN JOSE DEL FRAGUA","19290 - FLORENCIA","20295 - GAMARRA","23419 - LOS CORDOBAS","25148 - CAPARRAPI","27205 - CONDOTO","41306 - GIGANTE","44650 - SAN JUAN DEL CESAR","47288 - FUNDACION","50313 - GRANADA","52215 - CORDOBA","54239 - DURANIA","63690 - SALENTO","66594 - QUINCHIA","68147 - CAPITANEJO","70418 - LOS PALMITOS","73200 - COELLO","76130 - CANDELARIA",null,"85279 - RECETOR","86865 - VALLE DEL GUAMUEZ"]
["05045 - APARTADO","08560 - PONEDERA",null,"13244 - EL CARMEN DE BOLIVAR","15131 - CALDAS","17446 - MARULANDA","18753 - SAN VICENTE DEL CAGUAN","19300 - GUACHENE","20310 - GONZALEZ","23464 - MOMIL","25151 - CAQUEZA","27245 - EL CARMEN DE ATRATO","41319 - GUADALUPE","44847 - URIBIA","47318 - GUAMAL","50318 - GUAMAL","52224 - CUASPUD","54245 - EL CARMEN",null,"66682 - SANTA ROSA DE CABAL","68152 - CARCASI","70429 - MAJAGUAL","73217 - COYAIMA","76147 - CARTAGO",null,"85300 - SABANALARGA","86885 - VILLAGARZON"]
["05051 - ARBOLETES","08573 - PUERTO COLOMBIA",null,"13248 - EL GUAMO","15135 - CAMPOHERMOSO","17486 - NEIRA","18756 - SOLANO","19318 - GUAPI","20383 - LA GLORIA","23466 - MONTELIBANO","25154 - CARMEN DE CARUPA","27250 - EL LITORAL DEL SAN JUAN","41349 - HOBO","44855 - URUMITA","47460 - NUEVA GRANADA","50325 - MAPIRIPAN","52227 - CUMBAL","54250 - EL TARRA",null,"66687 - SANTUARIO","68160 - CEPITA","70473 - MORROA","73226 - CUNDAY","76233 - DAGUA",null,"85315 - SACAMA"]
["05055 - ARGELIA","08606 - REPELON",null,"13268 - EL PEÑON","15162 - CERINZA","17495 - NORCASIA","18785 - SOLITA","19355 - INZA","20400 - LA JAGUA DE IBIRICO","23500 - MOÑITOS","25168 - CHAGUANI","27361 - ISTMINA","41357 - IQUIRA","44874 - VILLANUEVA","47541 - PEDRAZA","50330 - MESETAS","52233 - CUMBITARA","54261 - EL ZULIA",null,null,"68162 - CERRITO","70508 - OVEJAS","73236 - DOLORES","76243 - EL AGUILA",null,"85325 - SAN LUIS DE PALENQUE"]
["05059 - ARMENIA","08634 - SABANAGRANDE",null,"13300 - HATILLO DE LOBA","15172 - CHINAVITA","17513 - PACORA","18860 - VALPARAISO","19364 - JAMBALO","20443 - MANAURE","23555 - PLANETA RICA","25175 - CHIA","27372 - JURADO","41359 - ISNOS",null,"47545 - PIJIÑO DEL CARMEN","50350 - LA MACARENA","52240 - CHACHAGÜI","54313 - GRAMALOTE",null,null,"68167 - CHARALA","70523 - PALMITO","73268 - ESPINAL","76246 - EL CAIRO",null,"85400 - TAMARA"]
["05079 - BARBOSA","08638 - SABANALARGA",null,"13430 - MAGANGUE","15176 - CHIQUINQUIRA","17524 - PALESTINA",null,"19392 - LA SIERRA","20517 - PAILITAS","23570 - PUEBLO NUEVO","25178 - CHIPAQUE","27413 - LLORO","41378 - LA ARGENTINA",null,"47551 - PIVIJAY","50370 - URIBE","52250 - EL CHARCO","54344 - HACARI",null,null,"68169 - CHARTA","70670 - SAMPUES","73270 - FALAN","76248 - EL CERRITO",null,"85410 - TAURAMENA"]
["05086 - BELMIRA","08675 - SANTA LUCIA",null,"13433 - MAHATES","15180 - CHISCAS","17541 - PENSILVANIA",null,"19397 - LA VEGA","20550 - PELAYA","23574 - PUERTO ESCONDIDO","25181 - CHOACHI","27425 - MEDIO ATRATO","41396 - LA PLATA",null,"47555 - PLATO","50400 - LEJANIAS","52254 - EL PEÑOL","54347 - HERRAN",null,null,"68176 - CHIMA","70678 - SAN BENITO ABAD","73275 - FLANDES","76250 - EL DOVIO",null,"85430 - TRINIDAD"]
["05088 - BELLO","08685 - SANTO TOMAS",null,"13440 - MARGARITA","15183 - CHITA","17614 - RIOSUCIO",null,"19418 - LOPEZ","20570 - PUEBLO BELLO","23580 - PUERTO LIBERTADOR","25183 - CHOCONTA","27430 - MEDIO BAUDO","41483 - NATAGA",null,"47570 - PUEBLOVIEJO","50450 - PUERTO CONCORDIA","52256 - EL ROSARIO","54377 - LABATECA",null,null,"68179 - CHIPATA","70702 - SAN JUAN DE BETULIA","73283 - FRESNO","76275 - FLORIDA",null,"85440 - VILLANUEVA"]
["05091 - BETANIA","08758 - SOLEDAD",null,"13442 - MARIA LA BAJA","15185 - CHITARAQUE","17616 - RISARALDA",null,"19450 - MERCADERES","20614 - RIO DE ORO","23586 - PURISIMA","25200 - COGUA","27450 - MEDIO SAN JUAN","41503 - OPORAPA",null,"47605 - REMOLINO","50568 - PUERTO GAITAN","52258 - EL TABLON DE GOMEZ","54385 - LA ESPERANZA",null,null,"68190 - CIMITARRA","70708 - SAN MARCOS","73319 - GUAMO","76306 - GINEBRA"]
["05093 - BETULIA","08770 - SUAN",null,"13458 - MONTECRISTO","15187 - CHIVATA","17653 - SALAMINA",null,"19455 - MIRANDA","20621 - LA PAZ","23660 - SAHAGUN","25214 - COTA","27491 - NOVITA","41518 - PAICOL",null,"47660 - SABANAS DE SAN ANGEL","50573 - PUERTO LOPEZ","52260 - EL TAMBO","54398 - LA PLAYA",null,null,"68207 - CONCEPCION","70713 - SAN ONOFRE","73347 - HERVEO","76318 - GUACARI"]
["05101 - CIUDAD BOLIVAR","08832 - TUBARA",null,"13468 - MOMPOS","15189 - CIENEGA","17662 - SAMANA",null,"19473 - MORALES","20710 - SAN ALBERTO","23670 - SAN ANDRES SOTAVENTO","25224 - CUCUNUBA","27495 - NUQUI","41524 - PALERMO",null,"47675 - SALAMINA","50577 - PUERTO LLERAS","52287 - FUNES","54405 - LOS PATIOS",null,null,"68209 - CONFINES","70717 - SAN PEDRO","73349 - HONDA","76364 - JAMUNDI"]
["05107 - BRICEÑO","08849 - USIACURI",null,"13473 - MORALES","15204 - COMBITA","17665 - SAN JOSE",null,"19513 - PADILLA","20750 - SAN DIEGO","23672 - SAN ANTERO","25245 - EL COLEGIO","27580 - RIO IRO","41530 - PALESTINA",null,"47692 - SAN SEBASTIAN DE BUENAVISTA","50590 - PUERTO RICO","52317 - GUACHUCAL","54418 - LOURDES",null,null,"68211 - CONTRATACION","70742 - SAN LUIS DE SINCE","73352 - ICONONZO","76377 - LA CUMBRE"]
["05113 - BURITICA",null,null,"13490 - NOROSI","15212 - COPER","17777 - SUPIA",null,"19517 - PAEZ","20770 - SAN MARTIN","23675 - SAN BERNARDO DEL VIENTO","25258 - EL PEÑON","27600 - RIO QUITO","41548 - PITAL",null,"47703 - SAN ZENON","50606 - RESTREPO","52320 - GUAITARILLA","54480 - MUTISCUA",null,null,"68217 - COROMORO","70771 - SUCRE","73408 - LERIDA","76400 - LA UNION"]
["05120 - CACERES",null,null,"13549 - PINILLOS","15215 - CORRALES","17867 - VICTORIA",null,"19532 - PATIA","20787 - TAMALAMEQUE","23678 - SAN CARLOS","25260 - EL ROSAL","27615 - RIOSUCIO","41551 - PITALITO",null,"47707 - SANTA ANA","50680 - SAN CARLOS DE GUAROA","52323 - GUALMATAN","54498 - OCAÑA",null,null,"68229 - CURITI","70820 - SANTIAGO DE TOLU","73411 - LIBANO","76403 - LA VICTORIA"]
["05125 - CAICEDO",null,null,"13580 - REGIDOR","15218 - COVARACHIA","17873 - VILLAMARIA",null,"19533 - PIAMONTE",null,"23682 - SAN JOSE DE URE","25269 - FACATATIVA","27660 - SAN JOSE DEL PALMAR","41615 - RIVERA",null,"47720 - SANTA BARBARA DE PINTO","50683 - SAN JUAN DE ARAMA","52352 - ILES","54518 - PAMPLONA",null,null,"68235 - EL CARMEN DE CHUCURI","70823 - TOLU VIEJO","73443 - SAN SEBASTIAN DE MARIQUITA","76497 - OBANDO"]
["05129 - CALDAS",null,null,"13600 - RIO VIEJO","15223 - CUBARA","17877 - VITERBO",null,"19548 - PIENDAMO",null,"23686 - SAN PELAYO","25279 - FOMEQUE","27745 - SIPI","41660 - SALADOBLANCO",null,"47745 - SITIONUEVO","50686 - SAN JUANITO","52354 - IMUES","54520 - PAMPLONITA",null,null,"68245 - EL GUACAMAYO",null,"73449 - MELGAR","76520 - PALMIRA"]
["05134 - CAMPAMENTO",null,null,"13620 - SAN CRISTOBAL","15224 - CUCAITA",null,null,"19573 - PUERTO TEJADA",null,"23807 - TIERRALTA","25281 - FOSCA","27787 - TADO","41668 - SAN AGUSTIN",null,"47798 - TENERIFE","50689 - SAN MARTIN","52356 - IPIALES","54553 - PUERTO SANTANDER",null,null,"68250 - EL PEÑON",null,"73461 - MURILLO","76563 - PRADERA"]
["05138 - CAÑASGORDAS",null,null,"13647 - SAN ESTANISLAO","15226 - CUITIVA",null,null,"19585 - PURACE",null,"23815 - TUCHIN","25286 - FUNZA","27800 - UNGUIA","41676 - SANTA MARIA",null,"47960 - ZAPAYAN","50711 - VISTAHERMOSA","52378 - LA CRUZ","54599 - RAGONVALIA",null,null,"68255 - EL PLAYON",null,"73483 - NATAGAIMA","76606 - RESTREPO"]
["05142 - CARACOLI",null,null,"13650 - SAN FERNANDO","15232 - CHIQUIZA",null,null,"19622 - ROSAS",null,"23855 - VALENCIA","25288 - FUQUENE","27810 - UNION PANAMERICANA","41770 - SUAZA",null,"47980 - ZONA BANANERA",null,"52381 - LA FLORIDA","54660 - SALAZAR",null,null,"68264 - ENCINO",null,"73504 - ORTEGA","76616 - RIOFRIO"]
["05145 - CARAMANTA",null,null,"13654 - SAN JACINTO","15236 - CHIVOR",null,null,"19693 - SAN SEBASTIAN",null,null,"25290 - FUSAGASUGA",null,"41791 - TARQUI",null,null,null,"52385 - LA LLANADA","54670 - SAN CALIXTO",null,null,"68266 - ENCISO",null,"73520 - PALOCABILDO","76622 - ROLDANILLO"]
["05147 - CAREPA",null,null,"13655 - SAN JACINTO DEL CAUCA","15238 - DUITAMA",null,null,"19698 - SANTANDER DE QUILICHAO",null,null,"25293 - GACHALA",null,"41797 - TESALIA",null,null,null,"52390 - LA TOLA","54673 - SAN CAYETANO",null,null,"68271 - FLORIAN",null,"73547 - PIEDRAS","76670 - SAN PEDRO"]
["05148 - EL CARMEN DE VIBORAL",null,null,"13657 - SAN JUAN NEPOMUCENO","15244 - EL COCUY",null,null,"19701 - SANTA ROSA",null,null,"25295 - GACHANCIPA",null,"41799 - TELLO",null,null,null,"52399 - LA UNION","54680 - SANTIAGO",null,null,"68276 - FLORIDABLANCA",null,"73555 - PLANADAS","76736 - SEVILLA"]
["05150 - CAROLINA",null,null,"13667 - SAN MARTIN DE LOBA","15248 - EL ESPINO",null,null,"19743 - SILVIA",null,null,"25297 - GACHETA",null,"41801 - TERUEL",null,null,null,"52405 - LEIVA","54720 - SARDINATA",null,null,"68296 - GALAN",null,"73563 - PRADO","76823 - TORO"]
["05154 - CAUCASIA",null,null,"13670 - SAN PABLO","15272 - FIRAVITOBA",null,null,"19760 - SOTARA",null,null,"25299 - GAMA",null,"41807 - TIMANA",null,null,null,"52411 - LINARES","54743 - SILOS",null,null,"68298 - GAMBITA",null,"73585 - PURIFICACION","76828 - TRUJILLO"]
["05172 - CHIGORODO",null,null,"13673 - SANTA CATALINA","15276 - FLORESTA",null,null,"19780 - SUAREZ",null,null,"25307 - GIRARDOT",null,"41872 - VILLAVIEJA",null,null,null,"52418 - LOS ANDES","54800 - TEORAMA",null,null,"68307 - GIRON",null,"73616 - RIOBLANCO","76834 - TULUA"]
["05190 - CISNEROS",null,null,"13683 - SANTA ROSA","15293 - GACHANTIVA",null,null,"19785 - SUCRE",null,null,"25312 - GRANADA",null,"41885 - YAGUARA",null,null,null,"52427 - MAGÜI","54810 - TIBU",null,null,"68318 - GUACA",null,"73622 - RONCESVALLES","76845 - ULLOA"]
["05197 - COCORNA",null,null,"13688 - SANTA ROSA DEL SUR","15296 - GAMEZA",null,null,"19807 - TIMBIO",null,null,"25317 - GUACHETA",null,null,null,null,null,"52435 - MALLAMA","54820 - TOLEDO",null,null,"68320 - GUADALUPE",null,"73624 - ROVIRA","76863 - VERSALLES"]
["05206 - CONCEPCION",null,null,"13744 - SIMITI","15299 - GARAGOA",null,null,"19809 - TIMBIQUI",null,null,"25320 - GUADUAS",null,null,null,null,null,"52473 - MOSQUERA","54871 - VILLA CARO",null,null,"68322 - GUAPOTA",null,"73671 - SALDAÑA","76869 - VIJES"]
["05209 - CONCORDIA",null,null,"13760 - SOPLAVIENTO","15317 - GUACAMAYAS",null,null,"19821 - TORIBIO",null,null,"25322 - GUASCA",null,null,null,null,null,"52480 - NARIÑO","54874 - VILLA DEL ROSARIO",null,null,"68324 - GUAVATA",null,"73675 - SAN ANTONIO","76890 - YOTOCO"]
["05212 - COPACABANA",null,null,"13780 - TALAIGUA NUEVO","15322 - GUATEQUE",null,null,"19824 - TOTORO",null,null,"25324 - GUATAQUI",null,null,null,null,null,"52490 - OLAYA HERRERA",null,null,null,"68327 - GÜEPSA",null,"73678 - SAN LUIS","76892 - YUMBO"]
["05234 - DABEIBA",null,null,"13810 - TIQUISIO","15325 - GUAYATA",null,null,"19845 - VILLA RICA",null,null,"25326 - GUATAVITA",null,null,null,null,null,"52506 - OSPINA",null,null,null,"68344 - HATO",null,"73686 - SANTA ISABEL","76895 - ZARZAL"]
["05237 - DON MATIAS",null,null,"13836 - TURBACO","15332 - GÜICAN",null,null,null,null,null,"25328 - GUAYABAL DE SIQUIMA",null,null,null,null,null,"52520 - FRANCISCO PIZARRO",null,null,null,"68368 - JESUS MARIA",null,"73770 - SUAREZ"]
["05240 - EBEJICO",null,null,"13838 - TURBANA","15362 - IZA",null,null,null,null,null,"25335 - GUAYABETAL",null,null,null,null,null,"52540 - POLICARPA",null,null,null,"68370 - JORDAN",null,"73854 - VALLE DE SAN JUAN"]
["05250 - EL BAGRE",null,null,"13873 - VILLANUEVA","15367 - JENESANO",null,null,null,null,null,"25339 - GUTIERREZ",null,null,null,null,null,"52560 - POTOSI",null,null,null,"68377 - LA BELLEZA",null,"73861 - VENADILLO"]
["05264 - ENTRERRIOS",null,null,"13894 - ZAMBRANO","15368 - JERICO",null,null,null,null,null,"25368 - JERUSALEN",null,null,null,null,null,"52565 - PROVIDENCIA",null,null,null,"68385 - LANDAZURI",null,"73870 - VILLAHERMOSA"]
["05266 - ENVIGADO",null,null,null,"15377 - LABRANZAGRANDE",null,null,null,null,null,"25372 - JUNIN",null,null,null,null,null,"52573 - PUERRES",null,null,null,"68397 - LA PAZ",null,"73873 - VILLARRICA"]
["05282 - FREDONIA",null,null,null,"15380 - LA CAPILLA",null,null,null,null,null,"25377 - LA CALERA",null,null,null,null,null,"52585 - PUPIALES",null,null,null,"68406 - LEBRIJA"]
["05284 - FRONTINO",null,null,null,"15401 - LA VICTORIA",null,null,null,null,null,"25386 - LA MESA",null,null,null,null,null,"52612 - RICAURTE",null,null,null,"68418 - LOS SANTOS"]
["05306 - GIRALDO",null,null,null,"15403 - LA UVITA",null,null,null,null,null,"25394 - LA PALMA",null,null,null,null,null,"52621 - ROBERTO PAYAN",null,null,null,"68425 - MACARAVITA"]
["05308 - GIRARDOTA",null,null,null,"15407 - VILLA DE LEYVA",null,null,null,null,null,"25398 - LA PEÑA",null,null,null,null,null,"52678 - SAMANIEGO",null,null,null,"68432 - MALAGA"]
["05310 - GOMEZ PLATA",null,null,null,"15425 - MACANAL",null,null,null,null,null,"25402 - LA VEGA",null,null,null,null,null,"52683 - SANDONA",null,null,null,"68444 - MATANZA"]
["05313 - GRANADA",null,null,null,"15442 - MARIPI",null,null,null,null,null,"25407 - LENGUAZAQUE",null,null,null,null,null,"52685 - SAN BERNARDO",null,null,null,"68464 - MOGOTES"]
["05315 - GUADALUPE",null,null,null,"15455 - MIRAFLORES",null,null,null,null,null,"25426 - MACHETA",null,null,null,null,null,"52687 - SAN LORENZO",null,null,null,"68468 - MOLAGAVITA"]
["05318 - GUARNE",null,null,null,"15464 - MONGUA",null,null,null,null,null,"25430 - MADRID",null,null,null,null,null,"52693 - SAN PABLO",null,null,null,"68498 - OCAMONTE"]
["05321 - GUATAPE",null,null,null,"15466 - MONGUI",null,null,null,null,null,"25436 - MANTA",null,null,null,null,null,"52694 - SAN PEDRO DE CARTAGO",null,null,null,"68500 - OIBA"]
["05347 - HELICONIA",null,null,null,"15469 - MONIQUIRA",null,null,null,null,null,"25438 - MEDINA",null,null,null,null,null,"52696 - SANTA BARBARA",null,null,null,"68502 - ONZAGA"]
["05353 - HISPANIA",null,null,null,"15476 - MOTAVITA",null,null,null,null,null,"25473 - MOSQUERA",null,null,null,null,null,"52699 - SANTACRUZ",null,null,null,"68522 - PALMAR"]
["05360 - ITAGÜI",null,null,null,"15480 - MUZO",null,null,null,null,null,"25483 - NARIÑO",null,null,null,null,null,"52720 - SAPUYES",null,null,null,"68524 - PALMAS DEL SOCORRO"]
["05361 - ITUANGO",null,null,null,"15491 - NOBSA",null,null,null,null,null,"25486 - NEMOCON",null,null,null,null,null,"52786 - TAMINANGO",null,null,null,"68533 - PARAMO"]
["05364 - JARDIN",null,null,null,"15494 - NUEVO COLON",null,null,null,null,null,"25488 - NILO",null,null,null,null,null,"52788 - TANGUA",null,null,null,"68547 - PIEDECUESTA"]
["05368 - JERICO",null,null,null,"15500 - OICATA",null,null,null,null,null,"25489 - NIMAIMA",null,null,null,null,null,"52835 - SAN ANDRES DE TUMACO",null,null,null,"68549 - PINCHOTE"]
["05376 - LA CEJA",null,null,null,"15507 - OTANCHE",null,null,null,null,null,"25491 - NOCAIMA",null,null,null,null,null,"52838 - TUQUERRES",null,null,null,"68572 - PUENTE NACIONAL"]
["05380 - LA ESTRELLA",null,null,null,"15511 - PACHAVITA",null,null,null,null,null,"25506 - VENECIA",null,null,null,null,null,"52885 - YACUANQUER",null,null,null,"68573 - PUERTO PARRA"]
["05390 - LA PINTADA",null,null,null,"15514 - PAEZ",null,null,null,null,null,"25513 - PACHO",null,null,null,null,null,null,null,null,null,"68575 - PUERTO WILCHES"]
["05400 - LA UNION",null,null,null,"15516 - PAIPA",null,null,null,null,null,"25518 - PAIME",null,null,null,null,null,null,null,null,null,"68615 - RIONEGRO"]
["05411 - LIBORINA",null,null,null,"15518 - PAJARITO",null,null,null,null,null,"25524 - PANDI",null,null,null,null,null,null,null,null,null,"68655 - SABANA DE TORRES"]
["05425 - MACEO",null,null,null,"15522 - PANQUEBA",null,null,null,null,null,"25530 - PARATEBUENO",null,null,null,null,null,null,null,null,null,"68669 - SAN ANDRES"]
["05440 - MARINILLA",null,null,null,"15531 - PAUNA",null,null,null,null,null,"25535 - PASCA",null,null,null,null,null,null,null,null,null,"68673 - SAN BENITO"]
["05467 - MONTEBELLO",null,null,null,"15533 - PAYA",null,null,null,null,null,"25572 - PUERTO SALGAR",null,null,null,null,null,null,null,null,null,"68679 - SAN GIL"]
["05475 - MURINDO",null,null,null,"15537 - PAZ DE RIO",null,null,null,null,null,"25580 - PULI",null,null,null,null,null,null,null,null,null,"68682 - SAN JOAQUIN"]
["05480 - MUTATA",null,null,null,"15542 - PESCA",null,null,null,null,null,"25592 - QUEBRADANEGRA",null,null,null,null,null,null,null,null,null,"68684 - SAN JOSE DE MIRANDA"]
["05483 - NARIÑO",null,null,null,"15550 - PISBA",null,null,null,null,null,"25594 - QUETAME",null,null,null,null,null,null,null,null,null,"68686 - SAN MIGUEL"]
["05490 - NECOCLI",null,null,null,"15572 - PUERTO BOYACA",null,null,null,null,null,"25596 - QUIPILE",null,null,null,null,null,null,null,null,null,"68689 - SAN VICENTE DE CHUCURI"]
["05495 - NECHI",null,null,null,"15580 - QUIPAMA",null,null,null,null,null,"25599 - APULO",null,null,null,null,null,null,null,null,null,"68705 - SANTA BARBARA"]
["05501 - OLAYA",null,null,null,"15599 - RAMIRIQUI",null,null,null,null,null,"25612 - RICAURTE",null,null,null,null,null,null,null,null,null,"68720 - SANTA HELENA DEL OPON"]
["05541 - PEÑOL",null,null,null,"15600 - RAQUIRA",null,null,null,null,null,"25645 - SAN ANTONIO DEL TEQUENDAMA",null,null,null,null,null,null,null,null,null,"68745 - SIMACOTA"]
["05543 - PEQUE",null,null,null,"15621 - RONDON",null,null,null,null,null,"25649 - SAN BERNARDO",null,null,null,null,null,null,null,null,null,"68755 - SOCORRO"]
["05576 - PUEBLORRICO",null,null,null,"15632 - SABOYA",null,null,null,null,null,"25653 - SAN CAYETANO",null,null,null,null,null,null,null,null,null,"68770 - SUAITA"]
["05579 - PUERTO BERRIO",null,null,null,"15638 - SACHICA",null,null,null,null,null,"25658 - SAN FRANCISCO",null,null,null,null,null,null,null,null,null,"68773 - SUCRE"]
["05585 - PUERTO NARE",null,null,null,"15646 - SAMACA",null,null,null,null,null,"25662 - SAN JUAN DE RIO SECO",null,null,null,null,null,null,null,null,null,"68780 - SURATA"]
["05591 - PUERTO TRIUNFO",null,null,null,"15660 - SAN EDUARDO",null,null,null,null,null,"25718 - SASAIMA",null,null,null,null,null,null,null,null,null,"68820 - TONA"]
["05604 - REMEDIOS",null,null,null,"15664 - SAN JOSE DE PARE",null,null,null,null,null,"25736 - SESQUILE",null,null,null,null,null,null,null,null,null,"68855 - VALLE DE SAN JOSE"]
["05607 - RETIRO",null,null,null,"15667 - SAN LUIS DE GACENO",null,null,null,null,null,"25740 - SIBATE",null,null,null,null,null,null,null,null,null,"68861 - VELEZ"]
["05615 - RIONEGRO",null,null,null,"15673 - SAN MATEO",null,null,null,null,null,"25743 - SILVANIA",null,null,null,null,null,null,null,null,null,"68867 - VETAS"]
["05628 - SABANALARGA",null,null,null,"15676 - SAN MIGUEL DE SEMA",null,null,null,null,null,"25745 - SIMIJACA",null,null,null,null,null,null,null,null,null,"68872 - VILLANUEVA"]
["05631 - SABANETA",null,null,null,"15681 - SAN PABLO DE BORBUR",null,null,null,null,null,"25754 - SOACHA",null,null,null,null,null,null,null,null,null,"68895 - ZAPATOCA"]
["05642 - SALGAR",null,null,null,"15686 - SANTANA",null,null,null,null,null,"25758 - SOPO"]
["05647 - SAN ANDRES DE CUERQUIA",null,null,null,"15690 - SANTA MARIA",null,null,null,null,null,"25769 - SUBACHOQUE"]
["05649 - SAN CARLOS",null,null,null,"15693 - SANTA ROSA DE VITERBO",null,null,null,null,null,"25772 - SUESCA"]
["05652 - SAN FRANCISCO",null,null,null,"15696 - SANTA SOFIA",null,null,null,null,null,"25777 - SUPATA"]
["05656 - SAN JERONIMO",null,null,null,"15720 - SATIVANORTE",null,null,null,null,null,"25779 - SUSA"]
["05658 - SAN JOSE DE LA MONTAÑA",null,null,null,"15723 - SATIVASUR",null,null,null,null,null,"25781 - SUTATAUSA"]
["05659 - SAN JUAN DE URABA",null,null,null,"15740 - SIACHOQUE",null,null,null,null,null,"25785 - TABIO"]
["05660 - SAN LUIS",null,null,null,"15753 - SOATA",null,null,null,null,null,"25793 - TAUSA"]
["05664 - SAN PEDRO DE LOS MILAGROS",null,null,null,"15755 - SOCOTA",null,null,null,null,null,"25797 - TENA"]
["05665 - SAN PEDRO DE URABA",null,null,null,"15757 - SOCHA",null,null,null,null,null,"25799 - TENJO"]
["05667 - SAN RAFAEL",null,null,null,"15759 - SOGAMOSO",null,null,null,null,null,"25805 - TIBACUY"]
["05670 - SAN ROQUE",null,null,null,"15761 - SOMONDOCO",null,null,null,null,null,"25807 - TIBIRITA"]
["05674 - SAN VICENTE",null,null,null,"15762 - SORA",null,null,null,null,null,"25815 - TOCAIMA"]
["05679 - SANTA BARBARA",null,null,null,"15763 - SOTAQUIRA",null,null,null,null,null,"25817 - TOCANCIPA"]
["05686 - SANTA ROSA DE OSOS",null,null,null,"15764 - SORACA",null,null,null,null,null,"25823 - TOPAIPI"]
["05690 - SANTO DOMINGO",null,null,null,"15774 - SUSACON",null,null,null,null,null,"25839 - UBALA"]
["05697 - EL SANTUARIO",null,null,null,"15776 - SUTAMARCHAN",null,null,null,null,null,"25841 - UBAQUE"]
["05736 - SEGOVIA",null,null,null,"15778 - SUTATENZA",null,null,null,null,null,"25843 - UBATE"]
["05756 - SONSON",null,null,null,"15790 - TASCO",null,null,null,null,null,"25845 - UNE"]
["05761 - SOPETRAN",null,null,null,"15798 - TENZA",null,null,null,null,null,"25851 - UTICA"]
["05789 - TAMESIS",null,null,null,"15804 - TIBANA",null,null,null,null,null,"25862 - VERGARA"]
["05790 - TARAZA",null,null,null,"15806 - TIBASOSA",null,null,null,null,null,"25867 - VIANI"]
["05792 - TARSO",null,null,null,"15808 - TINJACA",null,null,null,null,null,"25871 - VILLAGOMEZ"]
["05809 - TITIRIBI",null,null,null,"15810 - TIPACOQUE",null,null,null,null,null,"25873 - VILLAPINZON"]
["05819 - TOLEDO",null,null,null,"15814 - TOCA",null,null,null,null,null,"25875 - VILLETA"]
["05837 - TURBO",null,null,null,"15816 - TOGÜI",null,null,null,null,null,"25878 - VIOTA"]
["05842 - URAMITA",null,null,null,"15820 - TOPAGA",null,null,null,null,null,"25885 - YACOPI"]
["05847 - URRAO",null,null,null,"15822 - TOTA",null,null,null,null,null,"25898 - ZIPACON"]
["05854 - VALDIVIA",null,null,null,"15832 - TUNUNGUA",null,null,null,null,null,"25899 - ZIPAQUIRA"]
["05856 - VALPARAISO",null,null,null,"15835 - TURMEQUE"]
["05858 - VEGACHI",null,null,null,"15837 - TUTA"]
["05861 - VENECIA",null,null,null,"15839 - TUTAZA"]
["05873 - VIGIA DEL FUERTE",null,null,null,"15842 - UMBITA"]
["05885 - YALI",null,null,null,"15861 - VENTAQUEMADA"]
["05887 - YARUMAL",null,null,null,"15879 - VIRACACHA"]
["05890 - YOLOMBO",null,null,null,"15897 - ZETAQUIRA"]
["05893 - YONDO"]
["05895 - ZARAGOZA"]